Department family,Entity,Date,Expense type,Expense area,Supplier,Transaction number,Amount
Department of Health,Leicestershire Partnership NHS Trust,01/03/21,Computer Hardware,Area Team,PHOENIX SOFTWARE LTD,OP/I889683,206141.76
Department of Health,Leicestershire Partnership NHS Trust,01/03/21,WIP Project Not in BS - Information Technology,Work in Progress,PHOENIX SOFTWARE LTD,OP/I889688,170066.95
Department of Health,Leicestershire Partnership NHS Trust,01/03/21,WIP Project Not in BS - Information Technology,Work in Progress,PHOENIX SOFTWARE LTD,OP/I889687,139145.69
Department of Health,Leicestershire Partnership NHS Trust,01/03/21,CHP Estates Management,Merlyn Vaz Centre (CHP),COMM HLTH PARTNERSHIPS LTD,0060188529,31975.24
Department of Health,Leicestershire Partnership NHS Trust,01/03/21,CHP Estates Management,Merlyn Vaz Centre (CHP),COMM HLTH PARTNERSHIPS LTD,0060188531,28677.33
Department of Health,Leicestershire Partnership NHS Trust,01/03/21,Rent,"OSL House (P54, LPT)",CABOT TRUSTEES LTD,063,41700.00
Department of Health,Leicestershire Partnership NHS Trust,02/03/21,Unitary Payment,"The Agnes Unit (AKA Assessment and Treatment Centre) (P85, LPT)",ARDEN PARTNERSHIP (LEICESTER),SI0067,113749.60
Department of Health,Leicestershire Partnership NHS Trust,02/03/21,Payroll Deductions -Salary Sacrifice Cars Scheme,Balance Sheet Collection,TUSKER,46584,29826.56
Department of Health,Leicestershire Partnership NHS Trust,02/03/21,Nurse - Band 6 -Agency,AMH - Central Access Point,HCL NURSING,HNSI0000619,1896.67
Department of Health,Leicestershire Partnership NHS Trust,02/03/21,Nurse - Band 6 -Agency,Adult City East CMHT - Merlyn Vaz,HCL NURSING,HNSI0000619,855.97
Department of Health,Leicestershire Partnership NHS Trust,02/03/21,NURSE - BAND 2 - AGENCY,Agnes Unit Management,HCL NURSING,HNSI0000619,9185.66
Department of Health,Leicestershire Partnership NHS Trust,02/03/21,NURSE - BAND 5 - AGENCY,Agnes Unit Management,HCL NURSING,HNSI0000619,4292.14
Department of Health,Leicestershire Partnership NHS Trust,02/03/21,NURSE - BAND 2 - AGENCY,Ashby Ward (Bradgate Unit),HCL NURSING,HNSI0000619,3020.20
Department of Health,Leicestershire Partnership NHS Trust,02/03/21,NURSE - BAND 5 - AGENCY,Ashby Ward (Bradgate Unit),HCL NURSING,HNSI0000619,329.84
Department of Health,Leicestershire Partnership NHS Trust,02/03/21,NURSE - BAND 2 - AGENCY,Aston Ward (Bradgate Unit),HCL NURSING,HNSI0000619,1064.19
Department of Health,Leicestershire Partnership NHS Trust,02/03/21,NURSE - BAND 5 - AGENCY,Aston Ward (Bradgate Unit),HCL NURSING,HNSI0000619,982.73
Department of Health,Leicestershire Partnership NHS Trust,02/03/21,NURSE - BAND 2 - AGENCY,Beaumont Ward - Bradgate Unit,HCL NURSING,HNSI0000619,1987.63
Department of Health,Leicestershire Partnership NHS Trust,02/03/21,NURSE - BAND 5 - AGENCY,Beaumont Ward - Bradgate Unit,HCL NURSING,HNSI0000619,1775.37
Department of Health,Leicestershire Partnership NHS Trust,02/03/21,NURSE - BAND 2 - AGENCY,Belvoir Psychiatric Intensive Care Unit,HCL NURSING,HNSI0000619,1177.82
Department of Health,Leicestershire Partnership NHS Trust,02/03/21,NURSE - BAND 5 - AGENCY,Belvoir Psychiatric Intensive Care Unit,HCL NURSING,HNSI0000619,1328.82
Department of Health,Leicestershire Partnership NHS Trust,02/03/21,Nurse - Band 6 -Agency,Crisis Resolution,HCL NURSING,HNSI0000619,4010.49
Department of Health,Leicestershire Partnership NHS Trust,02/03/21,NURSE - BAND 2 - AGENCY,Griffin Ward (HPC),HCL NURSING,HNSI0000619,677.14
Department of Health,Leicestershire Partnership NHS Trust,02/03/21,NURSE - BAND 5 - AGENCY,Griffin Ward (HPC),HCL NURSING,HNSI0000619,1529.56
Department of Health,Leicestershire Partnership NHS Trust,02/03/21,NURSE - BAND 2 - AGENCY,Heather Ward,HCL NURSING,HNSI0000619,634.96
Department of Health,Leicestershire Partnership NHS Trust,02/03/21,NURSE - BAND 5 - AGENCY,Heather Ward,HCL NURSING,HNSI0000619,594.16
Department of Health,Leicestershire Partnership NHS Trust,02/03/21,NURSE - BAND 5 - AGENCY,Phoenix Ward (HPC),HCL NURSING,HNSI0000619,562.84
Department of Health,Leicestershire Partnership NHS Trust,02/03/21,NURSE - BAND 2 - AGENCY,Place Of Safety Assessment Unit,HCL NURSING,HNSI0000619,213.26
Department of Health,Leicestershire Partnership NHS Trust,02/03/21,NURSE - BAND 2 - AGENCY,Stewart House,HCL NURSING,HNSI0000619,1402.31
Department of Health,Leicestershire Partnership NHS Trust,02/03/21,NURSE - BAND 5 - AGENCY,Stewart House,HCL NURSING,HNSI0000619,622.35
Department of Health,Leicestershire Partnership NHS Trust,02/03/21,NURSE - BAND 2 - AGENCY,Thornton Ward - Bradgate Unit,HCL NURSING,HNSI0000619,174.73
Department of Health,Leicestershire Partnership NHS Trust,02/03/21,NURSE - BAND 2 - AGENCY,Watermead Ward (Bradgate Unit),HCL NURSING,HNSI0000619,402.01
Department of Health,Leicestershire Partnership NHS Trust,02/03/21,NURSE - BAND 5 - AGENCY,Watermead Ward (Bradgate Unit),HCL NURSING,HNSI0000619,659.67
Department of Health,Leicestershire Partnership NHS Trust,02/03/21,Nurse - Band 6 -Agency,CAMHS Waiting List Monies,HCL SOCIAL CARE,HWSI0000362,25425.81
Department of Health,Leicestershire Partnership NHS Trust,03/03/21,External Data Processing / Storage,Records & information Governance,H COATES LTD/TA C&V DATA,4004394,32102.47
Department of Health,Leicestershire Partnership NHS Trust,03/03/21,WIP Project Not in BS - Information Technology,Work in Progress,PHOENIX SOFTWARE LTD,OP/889215,64474.49
Department of Health,Leicestershire Partnership NHS Trust,04/03/21,Crs_NHS_LT1y -Resus Inventory Supplied.,Balance Sheet Collection,SUPPLY CHAIN CO LTD,1121202313,36506.13
Department of Health,Leicestershire Partnership NHS Trust,08/03/21,Nurse - Band 6 -Agency,CAMHS Waiting List Monies,HCL SOCIAL CARE,HWSI0000372,27127.49
Department of Health,Leicestershire Partnership NHS Trust,08/03/21,Nurse - Band 6 -Agency,AMH - Central Access Point,HCL NURSING,HNSI0000627,2020.80
Department of Health,Leicestershire Partnership NHS Trust,08/03/21,Nurse - Band 6 -Agency,Adult City East CMHT - Merlyn Vaz,HCL NURSING,HNSI0000627,2139.93
Department of Health,Leicestershire Partnership NHS Trust,08/03/21,Nurse - Band 6 -Agency,Adult County Charnwood CMHT - Loughborough Base,HCL NURSING,HNSI0000627,1069.97
Department of Health,Leicestershire Partnership NHS Trust,08/03/21,Nurse - Band 6 -Agency,Adult County West Leicestershire CMHT,HCL NURSING,HNSI0000627,1069.97
Department of Health,Leicestershire Partnership NHS Trust,08/03/21,NURSE - BAND 2 - AGENCY,Agnes Unit Management,HCL NURSING,HNSI0000627,7842.99
Department of Health,Leicestershire Partnership NHS Trust,08/03/21,NURSE - BAND 5 - AGENCY,Agnes Unit Management,HCL NURSING,HNSI0000627,5241.77
Department of Health,Leicestershire Partnership NHS Trust,08/03/21,NURSE - BAND 2 - AGENCY,Ashby Ward (Bradgate Unit),HCL NURSING,HNSI0000627,550.47
Department of Health,Leicestershire Partnership NHS Trust,08/03/21,NURSE - BAND 2 - AGENCY,Aston Ward (Bradgate Unit),HCL NURSING,HNSI0000627,432.72
Department of Health,Leicestershire Partnership NHS Trust,08/03/21,NURSE - BAND 5 - AGENCY,Aston Ward (Bradgate Unit),HCL NURSING,HNSI0000627,329.84
Department of Health,Leicestershire Partnership NHS Trust,08/03/21,NURSE - BAND 2 - AGENCY,Beaumont Ward - Bradgate Unit,HCL NURSING,HNSI0000627,3592.37
Department of Health,Leicestershire Partnership NHS Trust,08/03/21,NURSE - BAND 5 - AGENCY,Beaumont Ward - Bradgate Unit,HCL NURSING,HNSI0000627,1070.63
Department of Health,Leicestershire Partnership NHS Trust,08/03/21,NURSE - BAND 2 - AGENCY,Belvoir Psychiatric Intensive Care Unit,HCL NURSING,HNSI0000627,1019.47
Department of Health,Leicestershire Partnership NHS Trust,08/03/21,NURSE - BAND 5 - AGENCY,Belvoir Psychiatric Intensive Care Unit,HCL NURSING,HNSI0000627,1325.87
Department of Health,Leicestershire Partnership NHS Trust,08/03/21,Nurse - Band 6 -Agency,Crisis Resolution,HCL NURSING,HNSI0000627,6021.32
Department of Health,Leicestershire Partnership NHS Trust,08/03/21,NURSE - BAND 5 - AGENCY,Griffin Ward (HPC),HCL NURSING,HNSI0000627,877.33
Department of Health,Leicestershire Partnership NHS Trust,08/03/21,NURSE - BAND 2 - AGENCY,Heather Ward,HCL NURSING,HNSI0000627,1422.33
Department of Health,Leicestershire Partnership NHS Trust,08/03/21,NURSE - BAND 5 - AGENCY,Heather Ward,HCL NURSING,HNSI0000627,1890.25
Department of Health,Leicestershire Partnership NHS Trust,08/03/21,NURSE - BAND 5 - AGENCY,Mill Lodge,HCL NURSING,HNSI0000627,873.97
Department of Health,Leicestershire Partnership NHS Trust,08/03/21,NURSE - BAND 2 - AGENCY,Phoenix Ward (HPC),HCL NURSING,HNSI0000627,174.73
Department of Health,Leicestershire Partnership NHS Trust,08/03/21,NURSE - BAND 5 - AGENCY,Phoenix Ward (HPC),HCL NURSING,HNSI0000627,266.77
Department of Health,Leicestershire Partnership NHS Trust,08/03/21,NURSE - BAND 2 - AGENCY,Place Of Safety Assessment Unit,HCL NURSING,HNSI0000627,1315.73
Department of Health,Leicestershire Partnership NHS Trust,08/03/21,NURSE - BAND 2 - AGENCY,Stewart House,HCL NURSING,HNSI0000627,3724.34
Department of Health,Leicestershire Partnership NHS Trust,08/03/21,NURSE - BAND 5 - AGENCY,Stewart House,HCL NURSING,HNSI0000627,760.65
Department of Health,Leicestershire Partnership NHS Trust,08/03/21,NURSE - BAND 2 - AGENCY,Thornton Ward - Bradgate Unit,HCL NURSING,HNSI0000627,254.94
Department of Health,Leicestershire Partnership NHS Trust,08/03/21,NURSE - BAND 2 - AGENCY,Beechwood Ward,HCL NURSING,HNSI0000620,731.45
Department of Health,Leicestershire Partnership NHS Trust,08/03/21,NURSE - BAND 5 - AGENCY,Beechwood Ward,HCL NURSING,HNSI0000620,524.53
Department of Health,Leicestershire Partnership NHS Trust,08/03/21,NURSE - BAND 5 - AGENCY,City Planned Care - East,HCL NURSING,HNSI0000620,14639.54
Department of Health,Leicestershire Partnership NHS Trust,08/03/21,NURSE - BAND 5 - AGENCY,City Planned Care - West,HCL NURSING,HNSI0000620,13830.32
Department of Health,Leicestershire Partnership NHS Trust,08/03/21,Nurse - Band 6 -Agency,City West CMHT MHSOP,HCL NURSING,HNSI0000620,2116.22
Department of Health,Leicestershire Partnership NHS Trust,08/03/21,NURSE - BAND 2 - AGENCY,Clarendon Ward,HCL NURSING,HNSI0000620,14807.87
Department of Health,Leicestershire Partnership NHS Trust,08/03/21,NURSE - BAND 5 - AGENCY,Clarendon Ward,HCL NURSING,HNSI0000620,9054.93
Department of Health,Leicestershire Partnership NHS Trust,08/03/21,NURSE - BAND 2 - AGENCY,Coalville Snibston Ward,HCL NURSING,HNSI0000620,4213.97
Department of Health,Leicestershire Partnership NHS Trust,08/03/21,NURSE - BAND 5 - AGENCY,Coalville Snibston Ward,HCL NURSING,HNSI0000620,957.90
Department of Health,Leicestershire Partnership NHS Trust,08/03/21,NURSE - BAND 2 - AGENCY,Coalville Ward 2,HCL NURSING,HNSI0000620,945.69
Department of Health,Leicestershire Partnership NHS Trust,08/03/21,NURSE - BAND 5 - AGENCY,Coalville Ward 2,HCL NURSING,HNSI0000620,1101.93
Department of Health,Leicestershire Partnership NHS Trust,08/03/21,NURSE - BAND 2 - AGENCY,Coleman Ward,HCL NURSING,HNSI0000620,1866.57
Department of Health,Leicestershire Partnership NHS Trust,08/03/21,NURSE - BAND 5 - AGENCY,Coleman Ward,HCL NURSING,HNSI0000620,2344.60
Department of Health,Leicestershire Partnership NHS Trust,08/03/21,NURSE - BAND 2 - AGENCY,Dalgliesh Ward,HCL NURSING,HNSI0000620,1108.84
Department of Health,Leicestershire Partnership NHS Trust,08/03/21,NURSE - BAND 5 - AGENCY,Dalgliesh Ward,HCL NURSING,HNSI0000620,1558.55
Department of Health,Leicestershire Partnership NHS Trust,08/03/21,NURSE - BAND 2 - AGENCY,Gwendolen Ward,HCL NURSING,HNSI0000620,2321.14
Department of Health,Leicestershire Partnership NHS Trust,08/03/21,NURSE - BAND 5 - AGENCY,Gwendolen Ward,HCL NURSING,HNSI0000620,3988.39
Department of Health,Leicestershire Partnership NHS Trust,08/03/21,NURSE - BAND 2 - AGENCY,H&B Comm Hosp East Ward,HCL NURSING,HNSI0000620,17416.70
Department of Health,Leicestershire Partnership NHS Trust,08/03/21,NURSE - BAND 5 - AGENCY,H&B Comm Hosp East Ward,HCL NURSING,HNSI0000620,11152.45
Department of Health,Leicestershire Partnership NHS Trust,08/03/21,NURSE - BAND 2 - AGENCY,H&B Comm Hosp North Ward,HCL NURSING,HNSI0000620,1328.32
Department of Health,Leicestershire Partnership NHS Trust,08/03/21,NURSE - BAND 5 - AGENCY,H&B Comm Hosp North Ward,HCL NURSING,HNSI0000620,3590.62
Department of Health,Leicestershire Partnership NHS Trust,08/03/21,NURSE - BAND 2 - AGENCY,Kirby Ward,HCL NURSING,HNSI0000620,902.78
Department of Health,Leicestershire Partnership NHS Trust,08/03/21,NURSE - BAND 5 - AGENCY,Kirby Ward,HCL NURSING,HNSI0000620,485.70
Department of Health,Leicestershire Partnership NHS Trust,08/03/21,NURSE - BAND 2 - AGENCY,Lough Charnwood Ward,HCL NURSING,HNSI0000620,1772.82
Department of Health,Leicestershire Partnership NHS Trust,08/03/21,NURSE - BAND 5 - AGENCY,Lough Charnwood Ward,HCL NURSING,HNSI0000620,1544.55
Department of Health,Leicestershire Partnership NHS Trust,08/03/21,NURSE - BAND 5 - AGENCY,Lough Swithland Ward,HCL NURSING,HNSI0000620,1086.70
Department of Health,Leicestershire Partnership NHS Trust,08/03/21,Nurse - Band 6 -Agency,MHSOP Unscheduled Care Service,HCL NURSING,HNSI0000620,645.63
Department of Health,Leicestershire Partnership NHS Trust,08/03/21,Nurse - Band 6 -Agency,South Leicestershire CMHT MHSOP,HCL NURSING,HNSI0000620,1305.81
Department of Health,Leicestershire Partnership NHS Trust,08/03/21,NURSE - BAND 2 - AGENCY,St Lukes Stroke Ward,HCL NURSING,HNSI0000620,2639.58
Department of Health,Leicestershire Partnership NHS Trust,08/03/21,NURSE - BAND 5 - AGENCY,St Lukes Stroke Ward,HCL NURSING,HNSI0000620,2845.49
Department of Health,Leicestershire Partnership NHS Trust,08/03/21,NURSE - BAND 2 - AGENCY,St Lukes Ward 3,HCL NURSING,HNSI0000620,812.23
Department of Health,Leicestershire Partnership NHS Trust,08/03/21,NURSE - BAND 5 - AGENCY,St Lukes Ward 3,HCL NURSING,HNSI0000620,1077.86
Department of Health,Leicestershire Partnership NHS Trust,08/03/21,NURSE - BAND 2 - AGENCY,Wakerley Ward,HCL NURSING,HNSI0000620,830.16
Department of Health,Leicestershire Partnership NHS Trust,08/03/21,NURSE - BAND 5 - AGENCY,Wakerley Ward,HCL NURSING,HNSI0000620,5689.41
Department of Health,Leicestershire Partnership NHS Trust,08/03/21,NURSE - BAND 5 - AGENCY,Welford Ward,HCL NURSING,HNSI0000620,312.74
Department of Health,Leicestershire Partnership NHS Trust,08/03/21,NURSE - BAND 3 - AGENCY,West Planned Care  - Hinckley Hub,HCL NURSING,HNSI0000620,483.44
Department of Health,Leicestershire Partnership NHS Trust,08/03/21,Drugs,Adult City Drugs,JANSSEN-CILAG LTD,930722695,12391.72
Department of Health,Leicestershire Partnership NHS Trust,08/03/21,Drugs,Adult County Drugs,JANSSEN-CILAG LTD,930722695,18587.57
Department of Health,Leicestershire Partnership NHS Trust,08/03/21,Medical & Surgical Equipment,Medical Devices Maintenance (LPT),WEL MEDICAL LTD,I240260,27000.00
Department of Health,Leicestershire Partnership NHS Trust,08/03/21,Rent,"St Peters Health Center (Part 1st and 2nd floors) (P66, LPT)",LEICESTER LIFT CO,LEP1/SI0691,27433.45
Department of Health,Leicestershire Partnership NHS Trust,08/03/21,Rent,Bridge Park Plaza - First Floor (LPT),RAYNSWAY PROPERTIES LTD,INV-2024,80507.52
Department of Health,Leicestershire Partnership NHS Trust,08/03/21,HR / Payroll Services,HR Employment Services,LINCOLNSHIRE PART NHSFT(RP7),2000021145,29360.83
Department of Health,Leicestershire Partnership NHS Trust,08/03/21,Crs_NHS_LT1y -Resus Inventory Supplied.,Balance Sheet Collection,SUPPLY CHAIN CO LTD,1121206897,28520.02
Department of Health,Leicestershire Partnership NHS Trust,09/03/21,Computer Consumables,Maternal Mental Health Services,DELL COMPUTERS,7402692474,7431.98
Department of Health,Leicestershire Partnership NHS Trust,09/03/21,Computer Consumables,Specialised Perinatal CMHT,DELL COMPUTERS,7402692474,19363.97
Department of Health,Leicestershire Partnership NHS Trust,09/03/21,Computer Hardware,HIS External Recharge,DELL COMPUTERS,7402690066,41460.00
Department of Health,Leicestershire Partnership NHS Trust,09/03/21,WIP Project Not in BS - Information Technology,Work in Progress,DELL COMPUTERS,7402689950,41213.40
Department of Health,Leicestershire Partnership NHS Trust,09/03/21,WIP Project Not in BS - Information Technology,Work in Progress,DELL COMPUTERS,7402690033,41213.40
Department of Health,Leicestershire Partnership NHS Trust,09/03/21,WIP Project Not in BS - Information Technology,Work in Progress,DELL COMPUTERS,7402689879,41213.40
Department of Health,Leicestershire Partnership NHS Trust,10/03/21,Contract : Accomodation,Out of County Income - Inpateints Project,TURNING POINT,SI-TPS-00032298,50809.67
Department of Health,Leicestershire Partnership NHS Trust,10/03/21,Contract : Accomodation,Out of County Income - Inpateints Project,TURNING POINT,SI-TPS-00032299,50809.67
Department of Health,Leicestershire Partnership NHS Trust,10/03/21,Contract : Accomodation,Out of County Income - Inpateints Project,TURNING POINT,SI-TPS-00032300,50809.67
Department of Health,Leicestershire Partnership NHS Trust,10/03/21,Contract : Accomodation,Out of County Income - Inpateints Project,TURNING POINT,SI-TPS-00032301,50809.67
Department of Health,Leicestershire Partnership NHS Trust,10/03/21,Contract : Accomodation,Out of County Income - Inpateints Project,TURNING POINT,SI-TPS-00032303,50809.67
Department of Health,Leicestershire Partnership NHS Trust,10/03/21,Contract : Accomodation,Out of County Income - Inpateints Project,TURNING POINT,SI-TPS-00032302,50809.67
Department of Health,Leicestershire Partnership NHS Trust,10/03/21,Contract : Accomodation,Out of County Income - Inpateints Project,TURNING POINT,SI-TPS-00032304,50809.67
Department of Health,Leicestershire Partnership NHS Trust,10/03/21,Contract : Accomodation,Out of County Income - Inpateints Project,TURNING POINT,SI-TPS-00032305,50809.67
Department of Health,Leicestershire Partnership NHS Trust,10/03/21,Contract : Accomodation,Out of County Income - Inpateints Project,TURNING POINT,SI-TPS-00032306,50809.67
Department of Health,Leicestershire Partnership NHS Trust,10/03/21,Contract : Accomodation,Out of County Income - Inpateints Project,TURNING POINT,SI-TPS-00032307,50809.67
Department of Health,Leicestershire Partnership NHS Trust,10/03/21,Network Costs - WAN Maint,HIS Infrastructure,VIRGIN MEDIA BUSINESS,262421-178,39368.12
Department of Health,Leicestershire Partnership NHS Trust,10/03/21,External Consultancy Fees,Covid Vaccination Workforce Bureau,SEYMOUR JOHN PUB SERV LTD,P1616,118774.93
Department of Health,Leicestershire Partnership NHS Trust,10/03/21,WIP Project Not in BS - Information Technology,Work in Progress,CCS MEDIA,4133867,52340.40
Department of Health,Leicestershire Partnership NHS Trust,10/03/21,NURSE - BAND 2 - AGENCY,Beechwood Ward,HCL NURSING,HNSI0000628,2011.92
Department of Health,Leicestershire Partnership NHS Trust,10/03/21,NURSE - BAND 5 - AGENCY,Beechwood Ward,HCL NURSING,HNSI0000628,2454.44
Department of Health,Leicestershire Partnership NHS Trust,10/03/21,NURSE - BAND 5 - AGENCY,City Planned Care - East,HCL NURSING,HNSI0000628,18328.28
Department of Health,Leicestershire Partnership NHS Trust,10/03/21,NURSE - BAND 5 - AGENCY,City Planned Care - West,HCL NURSING,HNSI0000628,11098.58
Department of Health,Leicestershire Partnership NHS Trust,10/03/21,Nurse - Band 6 -Agency,City West CMHT MHSOP,HCL NURSING,HNSI0000628,2116.22
Department of Health,Leicestershire Partnership NHS Trust,10/03/21,NURSE - BAND 2 - AGENCY,Clarendon Ward,HCL NURSING,HNSI0000628,6880.75
Department of Health,Leicestershire Partnership NHS Trust,10/03/21,NURSE - BAND 5 - AGENCY,Clarendon Ward,HCL NURSING,HNSI0000628,7254.66
Department of Health,Leicestershire Partnership NHS Trust,10/03/21,NURSE - BAND 2 - AGENCY,Coalville Snibston Ward,HCL NURSING,HNSI0000628,3331.47
Department of Health,Leicestershire Partnership NHS Trust,10/03/21,NURSE - BAND 5 - AGENCY,Coalville Snibston Ward,HCL NURSING,HNSI0000628,386.05
Department of Health,Leicestershire Partnership NHS Trust,10/03/21,NURSE - BAND 2 - AGENCY,Coalville Ward 2,HCL NURSING,HNSI0000628,912.73
Department of Health,Leicestershire Partnership NHS Trust,10/03/21,NURSE - BAND 5 - AGENCY,Coalville Ward 2,HCL NURSING,HNSI0000628,386.05
Department of Health,Leicestershire Partnership NHS Trust,10/03/21,NURSE - BAND 2 - AGENCY,Coleman Ward,HCL NURSING,HNSI0000628,1073.37
Department of Health,Leicestershire Partnership NHS Trust,10/03/21,NURSE - BAND 5 - AGENCY,Coleman Ward,HCL NURSING,HNSI0000628,2105.42
Department of Health,Leicestershire Partnership NHS Trust,10/03/21,NURSE - BAND 2 - AGENCY,Dalgliesh Ward,HCL NURSING,HNSI0000628,681.46
Department of Health,Leicestershire Partnership NHS Trust,10/03/21,NURSE - BAND 5 - AGENCY,Dalgliesh Ward,HCL NURSING,HNSI0000628,944.45
Department of Health,Leicestershire Partnership NHS Trust,10/03/21,NURSE - BAND 2 - AGENCY,Gwendolen Ward,HCL NURSING,HNSI0000628,3164.92
Department of Health,Leicestershire Partnership NHS Trust,10/03/21,NURSE - BAND 5 - AGENCY,Gwendolen Ward,HCL NURSING,HNSI0000628,3778.92
Department of Health,Leicestershire Partnership NHS Trust,10/03/21,NURSE - BAND 2 - AGENCY,H&B Comm Hosp East Ward,HCL NURSING,HNSI0000628,18567.06
Department of Health,Leicestershire Partnership NHS Trust,10/03/21,NURSE - BAND 5 - AGENCY,H&B Comm Hosp East Ward,HCL NURSING,HNSI0000628,8235.94
Department of Health,Leicestershire Partnership NHS Trust,10/03/21,NURSE - BAND 2 - AGENCY,H&B Comm Hosp North Ward,HCL NURSING,HNSI0000628,3515.97
Department of Health,Leicestershire Partnership NHS Trust,10/03/21,NURSE - BAND 5 - AGENCY,H&B Comm Hosp North Ward,HCL NURSING,HNSI0000628,2510.20
Department of Health,Leicestershire Partnership NHS Trust,10/03/21,NURSE - BAND 2 - AGENCY,Kirby Ward,HCL NURSING,HNSI0000628,827.96
Department of Health,Leicestershire Partnership NHS Trust,10/03/21,NURSE - BAND 5 - AGENCY,Kirby Ward,HCL NURSING,HNSI0000628,830.00
Department of Health,Leicestershire Partnership NHS Trust,10/03/21,NURSE - BAND 2 - AGENCY,Lough Charnwood Ward,HCL NURSING,HNSI0000628,3212.80
Department of Health,Leicestershire Partnership NHS Trust,10/03/21,NURSE - BAND 5 - AGENCY,Lough Swithland Ward,HCL NURSING,HNSI0000628,900.90
Department of Health,Leicestershire Partnership NHS Trust,10/03/21,Nurse - Band 6 -Agency,MHSOP Unscheduled Care Service,HCL NURSING,HNSI0000628,1126.49
Department of Health,Leicestershire Partnership NHS Trust,10/03/21,NURSE - BAND 2 - AGENCY,Rutland Ward Nursing,HCL NURSING,HNSI0000628,213.26
Department of Health,Leicestershire Partnership NHS Trust,10/03/21,Nurse - Band 6 -Agency,South Leicestershire CMHT MHSOP,HCL NURSING,HNSI0000628,1305.81
Department of Health,Leicestershire Partnership NHS Trust,10/03/21,NURSE - BAND 2 - AGENCY,St Lukes Stroke Ward,HCL NURSING,HNSI0000628,3781.52
Department of Health,Leicestershire Partnership NHS Trust,10/03/21,NURSE - BAND 5 - AGENCY,St Lukes Stroke Ward,HCL NURSING,HNSI0000628,3882.48
Department of Health,Leicestershire Partnership NHS Trust,10/03/21,NURSE - BAND 2 - AGENCY,St Lukes Ward 3,HCL NURSING,HNSI0000628,455.46
Department of Health,Leicestershire Partnership NHS Trust,10/03/21,NURSE - BAND 5 - AGENCY,St Lukes Ward 3,HCL NURSING,HNSI0000628,1634.86
Department of Health,Leicestershire Partnership NHS Trust,10/03/21,NURSE - BAND 2 - AGENCY,Wakerley Ward,HCL NURSING,HNSI0000628,1609.90
Department of Health,Leicestershire Partnership NHS Trust,10/03/21,NURSE - BAND 5 - AGENCY,Wakerley Ward,HCL NURSING,HNSI0000628,4053.81
Department of Health,Leicestershire Partnership NHS Trust,10/03/21,NURSE - BAND 2 - AGENCY,Welford Ward,HCL NURSING,HNSI0000628,211.53
Department of Health,Leicestershire Partnership NHS Trust,10/03/21,NURSE - BAND 5 - AGENCY,Welford Ward,HCL NURSING,HNSI0000628,302.60
Department of Health,Leicestershire Partnership NHS Trust,11/03/21,Med Trainees - FY1,Medical Trainees,UHL NHS TRUST (RWE),L0248709,29158.00
Department of Health,Leicestershire Partnership NHS Trust,11/03/21,UHL Facilities Management SLA,Estates Central Invoices To Recharge,UHL NHS TRUST (RWE),L0248541,927445.43
Department of Health,Leicestershire Partnership NHS Trust,11/03/21,Electricity,Estates & Facilities Central,UHL NHS TRUST (RWE),L0248542,37515.15
Department of Health,Leicestershire Partnership NHS Trust,12/03/21,Other Non-Medical Supplies & Services,Inter Unit I & E Distribution,UHL NHS TRUST (RWE),L0246975,150820.00
Department of Health,Leicestershire Partnership NHS Trust,12/03/21,UHL Facilities Management SLA,Estates Central Invoices To Recharge,UHL NHS TRUST (RWE),L0247199,927445.43
Department of Health,Leicestershire Partnership NHS Trust,12/03/21,Electricity,Estates & Facilities Central,UHL NHS TRUST (RWE),L0247200,37515.15
Department of Health,Leicestershire Partnership NHS Trust,12/03/21,Other Non-Medical Supplies & Services,Inter Unit I & E Distribution,UHL NHS TRUST (RWE),L0247833,150820.00
Department of Health,Leicestershire Partnership NHS Trust,12/03/21,Med Trainees - FY1,Medical Trainees,UHL NHS TRUST (RWE),L0248074,29198.60
Department of Health,Leicestershire Partnership NHS Trust,12/03/21,Med Trainees - FY1,Medical Trainees,UHL NHS TRUST (RWE),L0248075,29221.78
Department of Health,Leicestershire Partnership NHS Trust,12/03/21,Occupational Health,HR Operations,UHL NHS TRUST (RWE),L0248401,54734.67
Department of Health,Leicestershire Partnership NHS Trust,12/03/21,Other Non-Medical Supplies & Services,Inter Unit I & E Distribution,UHL NHS TRUST (RWE),L0248778,150820.00
Department of Health,Leicestershire Partnership NHS Trust,12/03/21,WIP Project Not in BS - Information Technology,Work in Progress,DELL COMPUTERS,7402691846,41213.40
Department of Health,Leicestershire Partnership NHS Trust,12/03/21,WIP Project Not in BS - Information Technology,Work in Progress,DELL COMPUTERS,7402691746,41213.40
Department of Health,Leicestershire Partnership NHS Trust,12/03/21,WIP Project Not in BS - Information Technology,Work in Progress,DELL COMPUTERS,7402689706,41213.40
Department of Health,Leicestershire Partnership NHS Trust,12/03/21,WIP Project Not in BS - Information Technology,Work in Progress,DELL COMPUTERS,7402691747,41213.40
Department of Health,Leicestershire Partnership NHS Trust,15/03/21,Nurse - Band 6 -Agency,CAMHS Waiting List Monies,HCL SOCIAL CARE,HWSI0000393,28946.98
Department of Health,Leicestershire Partnership NHS Trust,15/03/21,Nurse - Band 6 -Agency,AMH - Central Access Point,HCL NURSING,HNSI0000632,917.91
Department of Health,Leicestershire Partnership NHS Trust,15/03/21,Nurse - Band 6 -Agency,Adult City East CMHT - Merlyn Vaz,HCL NURSING,HNSI0000632,1965.00
Department of Health,Leicestershire Partnership NHS Trust,15/03/21,Nurse - Band 6 -Agency,Adult County Charnwood CMHT - Loughborough Base,HCL NURSING,HNSI0000632,1069.97
Department of Health,Leicestershire Partnership NHS Trust,15/03/21,Nurse - Band 6 -Agency,Adult County West Leicestershire CMHT,HCL NURSING,HNSI0000632,2418.12
Department of Health,Leicestershire Partnership NHS Trust,15/03/21,NURSE - BAND 2 - AGENCY,Agnes Unit Management,HCL NURSING,HNSI0000632,5161.07
Department of Health,Leicestershire Partnership NHS Trust,15/03/21,NURSE - BAND 5 - AGENCY,Agnes Unit Management,HCL NURSING,HNSI0000632,5338.90
Department of Health,Leicestershire Partnership NHS Trust,15/03/21,NURSE - BAND 2 - AGENCY,Ashby Ward (Bradgate Unit),HCL NURSING,HNSI0000632,573.05
Department of Health,Leicestershire Partnership NHS Trust,15/03/21,NURSE - BAND 5 - AGENCY,Ashby Ward (Bradgate Unit),HCL NURSING,HNSI0000632,329.84
Department of Health,Leicestershire Partnership NHS Trust,15/03/21,NURSE - BAND 2 - AGENCY,Aston Ward (Bradgate Unit),HCL NURSING,HNSI0000632,283.76
Department of Health,Leicestershire Partnership NHS Trust,15/03/21,NURSE - BAND 5 - AGENCY,Aston Ward (Bradgate Unit),HCL NURSING,HNSI0000632,3236.62
Department of Health,Leicestershire Partnership NHS Trust,15/03/21,NURSE - BAND 2 - AGENCY,Beaumont Ward - Bradgate Unit,HCL NURSING,HNSI0000632,1851.44
Department of Health,Leicestershire Partnership NHS Trust,15/03/21,NURSE - BAND 5 - AGENCY,Beaumont Ward - Bradgate Unit,HCL NURSING,HNSI0000632,266.77
Department of Health,Leicestershire Partnership NHS Trust,15/03/21,NURSE - BAND 2 - AGENCY,Belvoir Psychiatric Intensive Care Unit,HCL NURSING,HNSI0000632,3559.26
Department of Health,Leicestershire Partnership NHS Trust,15/03/21,NURSE - BAND 5 - AGENCY,Belvoir Psychiatric Intensive Care Unit,HCL NURSING,HNSI0000632,669.81
Department of Health,Leicestershire Partnership NHS Trust,15/03/21,Nurse - Band 6 -Agency,Crisis Resolution,HCL NURSING,HNSI0000632,4106.02
Department of Health,Leicestershire Partnership NHS Trust,15/03/21,NURSE - BAND 2 - AGENCY,Griffin Ward (HPC),HCL NURSING,HNSI0000632,875.45
Department of Health,Leicestershire Partnership NHS Trust,15/03/21,NURSE - BAND 5 - AGENCY,Griffin Ward (HPC),HCL NURSING,HNSI0000632,1907.79
Department of Health,Leicestershire Partnership NHS Trust,15/03/21,NURSE - BAND 2 - AGENCY,Heather Ward,HCL NURSING,HNSI0000632,1482.89
Department of Health,Leicestershire Partnership NHS Trust,15/03/21,NURSE - BAND 5 - AGENCY,Heather Ward,HCL NURSING,HNSI0000632,2476.53
Department of Health,Leicestershire Partnership NHS Trust,15/03/21,Nurse - Band 6 -Agency,Mental Health Triage Team,HCL NURSING,HNSI0000632,718.90
Department of Health,Leicestershire Partnership NHS Trust,15/03/21,NURSE - BAND 2 - AGENCY,Mill Lodge,HCL NURSING,HNSI0000632,182.81
Department of Health,Leicestershire Partnership NHS Trust,15/03/21,NURSE - BAND 5 - AGENCY,Mill Lodge,HCL NURSING,HNSI0000632,298.08
Department of Health,Leicestershire Partnership NHS Trust,15/03/21,NURSE - BAND 2 - AGENCY,Stewart House,HCL NURSING,HNSI0000632,4951.05
Department of Health,Leicestershire Partnership NHS Trust,15/03/21,NURSE - BAND 5 - AGENCY,Stewart House,HCL NURSING,HNSI0000632,827.50
Department of Health,Leicestershire Partnership NHS Trust,15/03/21,NURSE - BAND 2 - AGENCY,Thornton Ward - Bradgate Unit,HCL NURSING,HNSI0000632,174.73
Department of Health,Leicestershire Partnership NHS Trust,15/03/21,NURSE - BAND 2 - AGENCY,Watermead Ward (Bradgate Unit),HCL NURSING,HNSI0000632,606.03
Department of Health,Leicestershire Partnership NHS Trust,15/03/21,NURSE - BAND 5 - AGENCY,Watermead Ward (Bradgate Unit),HCL NURSING,HNSI0000632,307.35
Department of Health,Leicestershire Partnership NHS Trust,15/03/21,Gas,"Beaumont Leys Health Centre (P94, LPT)",TOTAL GAS & POWER LTD,233002003/21,583.59
Department of Health,Leicestershire Partnership NHS Trust,15/03/21,Gas,"Bradgate Unit (including Glenvale day Unit) (P7, LPT)",TOTAL GAS & POWER LTD,233002003/21,13940.05
Department of Health,Leicestershire Partnership NHS Trust,15/03/21,Gas,Bridge Park Plaza - First Floor (LPT),TOTAL GAS & POWER LTD,233002003/21,1525.51
Department of Health,Leicestershire Partnership NHS Trust,15/03/21,Gas,"Bridge Park Road - Units 2 and 3 (P148, LPT)",TOTAL GAS & POWER LTD,233002003/21,227.11
Department of Health,Leicestershire Partnership NHS Trust,15/03/21,Gas,"Coalville Community Hospital (P138, LPT)",TOTAL GAS & POWER LTD,233002003/21,6993.14
Department of Health,Leicestershire Partnership NHS Trust,15/03/21,Gas,"Coalville Health Centre (P121, LPT)",TOTAL GAS & POWER LTD,233002003/21,501.40
Department of Health,Leicestershire Partnership NHS Trust,15/03/21,Gas,"Evington Centre (P6, LPT)",TOTAL GAS & POWER LTD,233002003/21,839.66
Department of Health,Leicestershire Partnership NHS Trust,15/03/21,Gas,"Farm Lodge (P34, LPT)",TOTAL GAS & POWER LTD,233002003/21,211.43
Department of Health,Leicestershire Partnership NHS Trust,15/03/21,Gas,"Feilding Palmer Hospital (Lutterworth) (P131, LPT)",TOTAL GAS & POWER LTD,233002003/21,1189.91
Department of Health,Leicestershire Partnership NHS Trust,15/03/21,Gas,"Frith Cottages 3 & 4 (P36, LPT)",TOTAL GAS & POWER LTD,233002003/21,184.95
Department of Health,Leicestershire Partnership NHS Trust,15/03/21,Gas,HIS,TOTAL GAS & POWER LTD,233002003/21,262.91
Department of Health,Leicestershire Partnership NHS Trust,15/03/21,Gas,"Hawthorne Centre - Coalville (P14, LPT)",TOTAL GAS & POWER LTD,233002003/21,415.09
Department of Health,Leicestershire Partnership NHS Trust,15/03/21,Gas,"Hinckley and Bosworth Community Hospital (Sunnyside) (P133, LPT)",TOTAL GAS & POWER LTD,233002003/21,5061.30
Department of Health,Leicestershire Partnership NHS Trust,15/03/21,Gas,"Hynca Lodge (P33, LPT)",TOTAL GAS & POWER LTD,233002003/21,392.33
Department of Health,Leicestershire Partnership NHS Trust,15/03/21,Gas,"LGH - Gwendolen House (P4, LPT)",TOTAL GAS & POWER LTD,233002003/21,1623.92
Department of Health,Leicestershire Partnership NHS Trust,15/03/21,Gas,"Loughborough Hospital (P136, LPT)",TOTAL GAS & POWER LTD,233002003/21,13539.70
Department of Health,Leicestershire Partnership NHS Trust,15/03/21,Gas,Mawson House (LPT),TOTAL GAS & POWER LTD,233002003/21,46.85
Department of Health,Leicestershire Partnership NHS Trust,15/03/21,Gas,"Mett Centre (P49, LPT)",TOTAL GAS & POWER LTD,233002003/21,243.78
Department of Health,Leicestershire Partnership NHS Trust,15/03/21,Gas,"Narborough Health Centre (P117, LPT)",TOTAL GAS & POWER LTD,233002003/21,405.76
Department of Health,Leicestershire Partnership NHS Trust,15/03/21,Gas,"Neville Centre - LGH (was DSC) (P147, LPT)",TOTAL GAS & POWER LTD,233002003/21,771.43
Department of Health,Leicestershire Partnership NHS Trust,15/03/21,Gas,"OSL House (P54, LPT)",TOTAL GAS & POWER LTD,233002003/21,887.29
Department of Health,Leicestershire Partnership NHS Trust,15/03/21,Gas,"Orchard Resource Centre (P15, LPT)",TOTAL GAS & POWER LTD,233002003/21,602.06
Department of Health,Leicestershire Partnership NHS Trust,15/03/21,Gas,"Rubicon Close 3 (P56, LPT)",TOTAL GAS & POWER LTD,233002003/21,92.28
Department of Health,Leicestershire Partnership NHS Trust,15/03/21,Gas,"Rutland Memorial Hospital (P134, LPT)",TOTAL GAS & POWER LTD,233002003/21,2710.73
Department of Health,Leicestershire Partnership NHS Trust,15/03/21,Gas,"Shepshed Health Centre (P123, LPT)",TOTAL GAS & POWER LTD,233002003/21,479.44
Department of Health,Leicestershire Partnership NHS Trust,15/03/21,Gas,"Springfield Road Health Centre (P92, LPT)",TOTAL GAS & POWER LTD,233002003/21,504.70
Department of Health,Leicestershire Partnership NHS Trust,15/03/21,Gas,"Stewart House (P61, LPT)",TOTAL GAS & POWER LTD,233002003/21,2161.71
Department of Health,Leicestershire Partnership NHS Trust,15/03/21,Gas,"Swithland House - London Road 352 (P44, LPT)",TOTAL GAS & POWER LTD,233002003/21,837.46
Department of Health,Leicestershire Partnership NHS Trust,15/03/21,Gas,"The Agnes Unit (AKA Assessment and Treatment Centre) (P85, LPT)",TOTAL GAS & POWER LTD,233002003/21,2715.24
Department of Health,Leicestershire Partnership NHS Trust,15/03/21,Gas,The Beacon,TOTAL GAS & POWER LTD,233002003/21,1449.34
Department of Health,Leicestershire Partnership NHS Trust,15/03/21,Gas,"The Cedars (P19, LPT)",TOTAL GAS & POWER LTD,233002003/21,308.64
Department of Health,Leicestershire Partnership NHS Trust,15/03/21,Gas,"The Grange 1 (P4, LPT)",TOTAL GAS & POWER LTD,233002003/21,169.61
Department of Health,Leicestershire Partnership NHS Trust,15/03/21,Gas,"The Grange 2 (P41, LPT)",TOTAL GAS & POWER LTD,233002003/21,198.97
Department of Health,Leicestershire Partnership NHS Trust,15/03/21,Gas,"The Willows - Cordelia Close (P22, LPT)",TOTAL GAS & POWER LTD,233002003/21,2383.33
Department of Health,Leicestershire Partnership NHS Trust,15/03/21,Gas,"Westcotes Group -Westcotes House (P78, LPT)",TOTAL GAS & POWER LTD,233002003/21,927.29
Department of Health,Leicestershire Partnership NHS Trust,15/03/21,Gas,"Winstanley Drive Health Centre (P8, LPT)",TOTAL GAS & POWER LTD,233002003/21,468.68
Department of Health,Leicestershire Partnership NHS Trust,15/03/21,Crs_NHS_LT1y -Resus Inventory Supplied.,Balance Sheet Collection,SUPPLY CHAIN CO LTD,1121210546,76026.13
Department of Health,Leicestershire Partnership NHS Trust,15/03/21,Photocopying,Finance Department,LEXMARK INTERNATIONAL LTD,900650300494,33298.48
Department of Health,Leicestershire Partnership NHS Trust,16/03/21,Medical Consumables,CHS Inpatient Management,SELECTA UK LIMITED,210022188,26806.68
Department of Health,Leicestershire Partnership NHS Trust,16/03/21,Computer Hardware,CHS Inpatient Management,XMA COMPUTER PRODUCTS,KY78208,53374.03
Department of Health,Leicestershire Partnership NHS Trust,17/03/21,Landline Telephone Rental / Calls,"Beaumont Leys Health Centre (P94, LPT)",VIRGIN MEDIA BUSINESS,853083001/004/0321,373.12
Department of Health,Leicestershire Partnership NHS Trust,17/03/21,Landline Telephone Rental / Calls,Belgrave Health Centre (CHP),VIRGIN MEDIA BUSINESS,853083001/004/0321,312.12
Department of Health,Leicestershire Partnership NHS Trust,17/03/21,Landline Telephone Rental / Calls,"Bennion Centre (including Forest Grange Day Unit) (P8, LPT)",VIRGIN MEDIA BUSINESS,853083001/004/0321,7.74
Department of Health,Leicestershire Partnership NHS Trust,17/03/21,Landline Telephone Rental / Calls,"Bradgate Unit (including Glenvale day Unit) (P7, LPT)",VIRGIN MEDIA BUSINESS,853083001/004/0321,9296.64
Department of Health,Leicestershire Partnership NHS Trust,17/03/21,Landline Telephone Rental / Calls,Braunstone Health and Social Care Centre (Part) (PROPCO),VIRGIN MEDIA BUSINESS,853083001/004/0321,1037.33
Department of Health,Leicestershire Partnership NHS Trust,17/03/21,Landline Telephone Rental / Calls,Bridge Park Plaza - First Floor (LPT),VIRGIN MEDIA BUSINESS,853083001/004/0321,4342.67
Department of Health,Leicestershire Partnership NHS Trust,17/03/21,Landline Telephone Rental / Calls,"Coalville Community Hospital (P138, LPT)",VIRGIN MEDIA BUSINESS,853083001/004/0321,1425.65
Department of Health,Leicestershire Partnership NHS Trust,17/03/21,Landline Telephone Rental / Calls,"Coalville Health Centre (P121, LPT)",VIRGIN MEDIA BUSINESS,853083001/004/0321,166.22
Department of Health,Leicestershire Partnership NHS Trust,17/03/21,Landline Telephone Rental / Calls,County Hall,VIRGIN MEDIA BUSINESS,853083001/004/0321,1149.86
Department of Health,Leicestershire Partnership NHS Trust,17/03/21,Landline Telephone Rental / Calls,Estates & Facilities Central,VIRGIN MEDIA BUSINESS,853083001/004/0321,3459.79
Department of Health,Leicestershire Partnership NHS Trust,17/03/21,Landline Telephone Rental / Calls,"Evington Centre (P6, LPT)",VIRGIN MEDIA BUSINESS,853083001/004/0321,1834.50
Department of Health,Leicestershire Partnership NHS Trust,17/03/21,Landline Telephone Rental / Calls,HIS,VIRGIN MEDIA BUSINESS,853083001/004/0321,3142.49
Department of Health,Leicestershire Partnership NHS Trust,17/03/21,Landline Telephone Rental / Calls,"Hawthorne Centre - Coalville (P14, LPT)",VIRGIN MEDIA BUSINESS,853083001/004/0321,537.77
Department of Health,Leicestershire Partnership NHS Trust,17/03/21,Landline Telephone Rental / Calls,Hinckley & District Hospital (PROPCO),VIRGIN MEDIA BUSINESS,853083001/004/0321,1045.93
Department of Health,Leicestershire Partnership NHS Trust,17/03/21,Landline Telephone Rental / Calls,"Hinckley and Bosworth Community Hospital (Sunnyside) (P133, LPT)",VIRGIN MEDIA BUSINESS,853083001/004/0321,1069.52
Department of Health,Leicestershire Partnership NHS Trust,17/03/21,Landline Telephone Rental / Calls,Hood Park Leisure Centre Clinic,VIRGIN MEDIA BUSINESS,853083001/004/0321,23.22
Department of Health,Leicestershire Partnership NHS Trust,17/03/21,Landline Telephone Rental / Calls,"Hynca Lodge (P33, LPT)",VIRGIN MEDIA BUSINESS,853083001/004/0321,387.48
Department of Health,Leicestershire Partnership NHS Trust,17/03/21,Landline Telephone Rental / Calls,"Legion House, Ashby",VIRGIN MEDIA BUSINESS,853083001/004/0321,60.91
Department of Health,Leicestershire Partnership NHS Trust,17/03/21,Landline Telephone Rental / Calls,Loughborough Health Centre (PROPCO),VIRGIN MEDIA BUSINESS,853083001/004/0321,14.10
Department of Health,Leicestershire Partnership NHS Trust,17/03/21,Landline Telephone Rental / Calls,"Loughborough Hospital (P136, LPT)",VIRGIN MEDIA BUSINESS,853083001/004/0321,4729.31
Department of Health,Leicestershire Partnership NHS Trust,17/03/21,Landline Telephone Rental / Calls,Mawson House (LPT),VIRGIN MEDIA BUSINESS,853083001/004/0321,520.60
Department of Health,Leicestershire Partnership NHS Trust,17/03/21,Landline Telephone Rental / Calls,Melbourne Centre (Pt Grnd flr) (PROPCO),VIRGIN MEDIA BUSINESS,853083001/004/0321,6.45
Department of Health,Leicestershire Partnership NHS Trust,17/03/21,Landline Telephone Rental / Calls,Melton Mowbray Hospital (previously St. Mary's) (PROPCO),VIRGIN MEDIA BUSINESS,853083001/004/0321,1549.31
Department of Health,Leicestershire Partnership NHS Trust,17/03/21,Landline Telephone Rental / Calls,Merlyn Vaz Centre (CHP),VIRGIN MEDIA BUSINESS,853083001/004/0321,1480.84
Department of Health,Leicestershire Partnership NHS Trust,17/03/21,Landline Telephone Rental / Calls,"Mett Centre (P49, LPT)",VIRGIN MEDIA BUSINESS,853083001/004/0321,77.58
Department of Health,Leicestershire Partnership NHS Trust,17/03/21,Landline Telephone Rental / Calls,NSPCC Training Cente,VIRGIN MEDIA BUSINESS,853083001/004/0321,159.96
Department of Health,Leicestershire Partnership NHS Trust,17/03/21,Landline Telephone Rental / Calls,New Parks Health Centre (PROPCO),VIRGIN MEDIA BUSINESS,853083001/004/0321,1526.78
Department of Health,Leicestershire Partnership NHS Trust,17/03/21,Landline Telephone Rental / Calls,"OSL House (P54, LPT)",VIRGIN MEDIA BUSINESS,853083001/004/0321,2080.81
Department of Health,Leicestershire Partnership NHS Trust,17/03/21,Landline Telephone Rental / Calls,"Orchard Resource Centre (P15, LPT)",VIRGIN MEDIA BUSINESS,853083001/004/0321,791.89
Department of Health,Leicestershire Partnership NHS Trust,17/03/21,Landline Telephone Rental / Calls,Pasley Road Health Centre (PROPCO),VIRGIN MEDIA BUSINESS,853083001/004/0321,105.54
Department of Health,Leicestershire Partnership NHS Trust,17/03/21,Landline Telephone Rental / Calls,"Prince Philip House (P96, LPT)",VIRGIN MEDIA BUSINESS,853083001/004/0321,1492.18
Department of Health,Leicestershire Partnership NHS Trust,17/03/21,Landline Telephone Rental / Calls,Rushey Mead Health Centre (PROPCO),VIRGIN MEDIA BUSINESS,853083001/004/0321,91.40
Department of Health,Leicestershire Partnership NHS Trust,17/03/21,Landline Telephone Rental / Calls,"Shepshed Health Centre (P123, LPT)",VIRGIN MEDIA BUSINESS,853083001/004/0321,14.08
Department of Health,Leicestershire Partnership NHS Trust,17/03/21,Landline Telephone Rental / Calls,"Springfield Road Health Centre (P92, LPT)",VIRGIN MEDIA BUSINESS,853083001/004/0321,386.42
Department of Health,Leicestershire Partnership NHS Trust,17/03/21,Landline Telephone Rental / Calls,"St Peters Health Center (Part 1st and 2nd floors) (P66, LPT)",VIRGIN MEDIA BUSINESS,853083001/004/0321,2083.34
Department of Health,Leicestershire Partnership NHS Trust,17/03/21,Landline Telephone Rental / Calls,"Stewart House (P61, LPT)",VIRGIN MEDIA BUSINESS,853083001/004/0321,7.74
Department of Health,Leicestershire Partnership NHS Trust,17/03/21,Landline Telephone Rental / Calls,"Swithland House - London Road 352 (P44, LPT)",VIRGIN MEDIA BUSINESS,853083001/004/0321,474.80
Department of Health,Leicestershire Partnership NHS Trust,17/03/21,Landline Telephone Rental / Calls,"The Cedars (P19, LPT)",VIRGIN MEDIA BUSINESS,853083001/004/0321,793.28
Department of Health,Leicestershire Partnership NHS Trust,17/03/21,Landline Telephone Rental / Calls,"The Willows - Cordelia Close (P22, LPT)",VIRGIN MEDIA BUSINESS,853083001/004/0321,485.72
Department of Health,Leicestershire Partnership NHS Trust,17/03/21,Landline Telephone Rental / Calls,Uppingham Road Health Centre (PROPCO),VIRGIN MEDIA BUSINESS,853083001/004/0321,250.03
Department of Health,Leicestershire Partnership NHS Trust,17/03/21,Landline Telephone Rental / Calls,"Valentine Centre (P3, LPT)",VIRGIN MEDIA BUSINESS,853083001/004/0321,2120.42
Department of Health,Leicestershire Partnership NHS Trust,17/03/21,Landline Telephone Rental / Calls,Warren Park Way 25 (PROPCO),VIRGIN MEDIA BUSINESS,853083001/004/0321,727.06
Department of Health,Leicestershire Partnership NHS Trust,17/03/21,Landline Telephone Rental / Calls,"Westcotes Group -Westcotes House (P78, LPT)",VIRGIN MEDIA BUSINESS,853083001/004/0321,1573.69
Department of Health,Leicestershire Partnership NHS Trust,17/03/21,Landline Telephone Rental / Calls,Westcotes Health Centre (CHP),VIRGIN MEDIA BUSINESS,853083001/004/0321,790.96
Department of Health,Leicestershire Partnership NHS Trust,17/03/21,Landline Telephone Rental / Calls,"Winstanley Drive Health Centre (P8, LPT)",VIRGIN MEDIA BUSINESS,853083001/004/0321,442.72
Department of Health,Leicestershire Partnership NHS Trust,18/03/21,Medical & Surgical Equipment : Disposable,Medical Devices Maintenance (LPT),PINEAPPLE CONTRACTS,SI/70542,27765.55
Department of Health,Leicestershire Partnership NHS Trust,18/03/21,Landline Telephone Rental / Calls,Information Services,VIRGIN MEDIA BUSINESS,429911-024,48346.82
Department of Health,Leicestershire Partnership NHS Trust,18/03/21,WIP Project Not in BS - Information Technology,Work in Progress,DELL COMPUTERS,7402697054,49665.60
Department of Health,Leicestershire Partnership NHS Trust,18/03/21,WIP Project Not in BS - Information Technology,Work in Progress,DELL COMPUTERS,7402696558,49242.72
Department of Health,Leicestershire Partnership NHS Trust,18/03/21,Other Non-Medical Supplies & Services,Unallocated Budgets,NORTHAMPTONSHIRE HC NHS FT (RP1),5150144,164000.00
Department of Health,Leicestershire Partnership NHS Trust,18/03/21,Med Trainees - FY1,Medical Trainees,UHL NHS TRUST (RWE),L0249051,29158.00
Department of Health,Leicestershire Partnership NHS Trust,18/03/21,Nurse - Band 6 -Agency,CAMHS Inpatient Service,PROMETHEUS S & S LTD,19108,37262.00
Department of Health,Leicestershire Partnership NHS Trust,18/03/21,Occupational Health,HR Operations,UHL NHS TRUST (RWE),L0249076,27367.34
Department of Health,Leicestershire Partnership NHS Trust,19/03/21,NURSE - BAND 2 - AGENCY,Beechwood Ward,HCL NURSING,HNSI0000633,1804.53
Department of Health,Leicestershire Partnership NHS Trust,19/03/21,NURSE - BAND 5 - AGENCY,Beechwood Ward,HCL NURSING,HNSI0000633,974.07
Department of Health,Leicestershire Partnership NHS Trust,19/03/21,NURSE - BAND 5 - AGENCY,City Planned Care - East,HCL NURSING,HNSI0000633,11718.14
Department of Health,Leicestershire Partnership NHS Trust,19/03/21,NURSE - BAND 5 - AGENCY,City Planned Care - West,HCL NURSING,HNSI0000633,9451.64
Department of Health,Leicestershire Partnership NHS Trust,19/03/21,Nurse - Band 6 -Agency,City West CMHT MHSOP,HCL NURSING,HNSI0000633,2116.22
Department of Health,Leicestershire Partnership NHS Trust,19/03/21,NURSE - BAND 2 - AGENCY,Clarendon Ward,HCL NURSING,HNSI0000633,7859.37
Department of Health,Leicestershire Partnership NHS Trust,19/03/21,NURSE - BAND 5 - AGENCY,Clarendon Ward,HCL NURSING,HNSI0000633,1871.31
Department of Health,Leicestershire Partnership NHS Trust,19/03/21,NURSE - BAND 2 - AGENCY,Coalville Snibston Ward,HCL NURSING,HNSI0000633,738.40
Department of Health,Leicestershire Partnership NHS Trust,19/03/21,NURSE - BAND 5 - AGENCY,Coalville Snibston Ward,HCL NURSING,HNSI0000633,2774.05
Department of Health,Leicestershire Partnership NHS Trust,19/03/21,NURSE - BAND 2 - AGENCY,Coalville Ward 2,HCL NURSING,HNSI0000633,815.55
Department of Health,Leicestershire Partnership NHS Trust,19/03/21,NURSE - BAND 5 - AGENCY,Coalville Ward 2,HCL NURSING,HNSI0000633,600.65
Department of Health,Leicestershire Partnership NHS Trust,19/03/21,NURSE - BAND 2 - AGENCY,Coleman Ward,HCL NURSING,HNSI0000633,567.16
Department of Health,Leicestershire Partnership NHS Trust,19/03/21,NURSE - BAND 5 - AGENCY,Coleman Ward,HCL NURSING,HNSI0000633,2330.20
Department of Health,Leicestershire Partnership NHS Trust,19/03/21,NURSE - BAND 2 - AGENCY,Dalgliesh Ward,HCL NURSING,HNSI0000633,639.61
Department of Health,Leicestershire Partnership NHS Trust,19/03/21,NURSE - BAND 5 - AGENCY,Dalgliesh Ward,HCL NURSING,HNSI0000633,1294.24
Department of Health,Leicestershire Partnership NHS Trust,19/03/21,NURSE - BAND 2 - AGENCY,Gwendolen Ward,HCL NURSING,HNSI0000633,4522.73
Department of Health,Leicestershire Partnership NHS Trust,19/03/21,NURSE - BAND 5 - AGENCY,Gwendolen Ward,HCL NURSING,HNSI0000633,4140.12
Department of Health,Leicestershire Partnership NHS Trust,19/03/21,NURSE - BAND 2 - AGENCY,H&B Comm Hosp East Ward,HCL NURSING,HNSI0000633,8863.62
Department of Health,Leicestershire Partnership NHS Trust,19/03/21,NURSE - BAND 5 - AGENCY,H&B Comm Hosp East Ward,HCL NURSING,HNSI0000633,10732.84
Department of Health,Leicestershire Partnership NHS Trust,19/03/21,NURSE - BAND 2 - AGENCY,H&B Comm Hosp North Ward,HCL NURSING,HNSI0000633,1143.07
Department of Health,Leicestershire Partnership NHS Trust,19/03/21,NURSE - BAND 5 - AGENCY,H&B Comm Hosp North Ward,HCL NURSING,HNSI0000633,3971.01
Department of Health,Leicestershire Partnership NHS Trust,19/03/21,NURSE - BAND 2 - AGENCY,Kirby Ward,HCL NURSING,HNSI0000633,201.01
Department of Health,Leicestershire Partnership NHS Trust,19/03/21,NURSE - BAND 5 - AGENCY,Kirby Ward,HCL NURSING,HNSI0000633,633.61
Department of Health,Leicestershire Partnership NHS Trust,19/03/21,Nurse - Band 6 -Agency,MHSOP Unscheduled Care Service,HCL NURSING,HNSI0000633,832.73
Department of Health,Leicestershire Partnership NHS Trust,19/03/21,NURSE - BAND 2 - AGENCY,Non Recurrent 2012/13,HCL NURSING,HNSI0000633,1332.31
Department of Health,Leicestershire Partnership NHS Trust,19/03/21,NURSE - BAND 5 - AGENCY,Non Recurrent 2012/13,HCL NURSING,HNSI0000633,2717.02
Department of Health,Leicestershire Partnership NHS Trust,19/03/21,NURSE - BAND 2 - AGENCY,Rutland Ward Nursing,HCL NURSING,HNSI0000633,1456.34
Department of Health,Leicestershire Partnership NHS Trust,19/03/21,Nurse - Band 6 -Agency,South Leicestershire CMHT MHSOP,HCL NURSING,HNSI0000633,1305.81
Department of Health,Leicestershire Partnership NHS Trust,19/03/21,NURSE - BAND 2 - AGENCY,St Lukes Stroke Ward,HCL NURSING,HNSI0000633,3146.77
Department of Health,Leicestershire Partnership NHS Trust,19/03/21,NURSE - BAND 5 - AGENCY,St Lukes Stroke Ward,HCL NURSING,HNSI0000633,4649.46
Department of Health,Leicestershire Partnership NHS Trust,19/03/21,NURSE - BAND 2 - AGENCY,St Lukes Ward 3,HCL NURSING,HNSI0000633,819.32
Department of Health,Leicestershire Partnership NHS Trust,19/03/21,NURSE - BAND 5 - AGENCY,St Lukes Ward 3,HCL NURSING,HNSI0000633,1603.21
Department of Health,Leicestershire Partnership NHS Trust,19/03/21,NURSE - BAND 2 - AGENCY,Wakerley Ward,HCL NURSING,HNSI0000633,3100.80
Department of Health,Leicestershire Partnership NHS Trust,19/03/21,NURSE - BAND 5 - AGENCY,Wakerley Ward,HCL NURSING,HNSI0000633,6003.28
Department of Health,Leicestershire Partnership NHS Trust,19/03/21,GP IT Expenditure,Area Team,DELL COMPUTERS,7402692559,36475.52
Department of Health,Leicestershire Partnership NHS Trust,19/03/21,Computer Hardware,Medical Staffing - Bradgate Unit Inpatients,DELL COMPUTERS,7402694413,27200.84
Department of Health,Leicestershire Partnership NHS Trust,19/03/21,GP IT Expenditure,Area Team,DELL COMPUTERS,7402693962,40716.86
Department of Health,Leicestershire Partnership NHS Trust,19/03/21,WIP Project Not in BS - Information Technology,Work in Progress,DELL COMPUTERS,7402692131,41213.40
Department of Health,Leicestershire Partnership NHS Trust,19/03/21,WIP Project Not in BS - Information Technology,Work in Progress,DELL COMPUTERS,7402692498,41213.40
Department of Health,Leicestershire Partnership NHS Trust,19/03/21,GP IT Expenditure,Area Team,DELL COMPUTERS,7402692280,36475.52
Department of Health,Leicestershire Partnership NHS Trust,19/03/21,WIP Project Not in BS - Information Technology,Work in Progress,DELL COMPUTERS,7402692558,41213.40
Department of Health,Leicestershire Partnership NHS Trust,19/03/21,WIP Project Not in BS - Information Technology,Work in Progress,DELL COMPUTERS,7402692861,41213.40
Department of Health,Leicestershire Partnership NHS Trust,19/03/21,WIP Project Not in BS - Information Technology,Work in Progress,DELL COMPUTERS,7402690124,41213.40
Department of Health,Leicestershire Partnership NHS Trust,19/03/21,Leased / Hired Vehicles,Assertive Outreach Services,AUTOMOTIVE LEASING LTD,508139632,5.00
Department of Health,Leicestershire Partnership NHS Trust,19/03/21,Leased / Hired Vehicles,Autism,AUTOMOTIVE LEASING LTD,508139632,638.96
Department of Health,Leicestershire Partnership NHS Trust,19/03/21,Prep_ LT1y -Prepayments Lease Cars,Balance Sheet Collection,AUTOMOTIVE LEASING LTD,508139632,26762.65
Department of Health,Leicestershire Partnership NHS Trust,19/03/21,Trade_Drs_LT1y -Lease Cars Invoicing Contrl Ac.,Balance Sheet Collection,AUTOMOTIVE LEASING LTD,508139632,557.56
Department of Health,Leicestershire Partnership NHS Trust,19/03/21,Leased / Hired Vehicles,CAMHS Young Peoples Team,AUTOMOTIVE LEASING LTD,508139632,522.09
Department of Health,Leicestershire Partnership NHS Trust,19/03/21,Leased / Hired Vehicles,COVID 19,AUTOMOTIVE LEASING LTD,508139632,472.36
Department of Health,Leicestershire Partnership NHS Trust,19/03/21,Leased / Hired Vehicles,City Healthy Together 5 – 19 (SN),AUTOMOTIVE LEASING LTD,508139632,3374.45
Department of Health,Leicestershire Partnership NHS Trust,19/03/21,Leased / Hired Vehicles,City Planned Care - East - Therapy,AUTOMOTIVE LEASING LTD,508139632,10.00
Department of Health,Leicestershire Partnership NHS Trust,19/03/21,Leased / Hired Vehicles,Crisis Response and Home Treatment,AUTOMOTIVE LEASING LTD,508139632,380.81
Department of Health,Leicestershire Partnership NHS Trust,19/03/21,Leased / Hired Vehicles,East Planned Care - Blaby/Lutterworth,AUTOMOTIVE LEASING LTD,508139632,5.00
Department of Health,Leicestershire Partnership NHS Trust,19/03/21,Leased / Hired Vehicles,Support Services (Learn Dis),AUTOMOTIVE LEASING LTD,508139632,207.48
Department of Health,Leicestershire Partnership NHS Trust,19/03/21,Other Non-Medical Supplies & Services,Director of HR & OD,UHL NHS TRUST (RWE),L0249105,96469.00
Department of Health,Leicestershire Partnership NHS Trust,19/03/21,Other Non-Medical Supplies & Services,Director of HR & OD,UHL NHS TRUST (RWE),L0249106,125750.00
Department of Health,Leicestershire Partnership NHS Trust,19/03/21,External Consultancy Fees,LLR Health & Wellbeing Hub,UHL NHS TRUST (RWE),L0249106,1550.00
Department of Health,Leicestershire Partnership NHS Trust,19/03/21,WIP Project Not in BS - Buildings excl Dwellings,Work in Progress,TILBURY DOUGLAS CONSTRUCTION LTD,TMP01529,47372.47
Department of Health,Leicestershire Partnership NHS Trust,19/03/21,WIP Project Not in BS - Buildings excl Dwellings,Work in Progress,TILBURY DOUGLAS CONSTRUCTION LTD,TMP01528,26073.16
Department of Health,Leicestershire Partnership NHS Trust,19/03/21,WIP Project Not in BS - Buildings excl Dwellings,Work in Progress,TILBURY DOUGLAS CONSTRUCTION LTD,TMP01530,43578.71
Department of Health,Leicestershire Partnership NHS Trust,19/03/21,WIP Project Not in BS - Buildings excl Dwellings,Work in Progress,TILBURY DOUGLAS CONSTRUCTION LTD,TMP01526,25688.34
Department of Health,Leicestershire Partnership NHS Trust,19/03/21,WIP Project Not in BS - Buildings excl Dwellings,Work in Progress,TILBURY DOUGLAS CONSTRUCTION LTD,TMP01524,61451.34
Department of Health,Leicestershire Partnership NHS Trust,19/03/21,WIP Project Not in BS - Buildings excl Dwellings,Work in Progress,TILBURY DOUGLAS CONSTRUCTION LTD,TMP01523,205777.82
Department of Health,Leicestershire Partnership NHS Trust,19/03/21,Contract : Premises Security,Feilding Palmer - Staff Vaccination Hub,UHL NHS TRUST (RWE),L0249126,27665.55
Department of Health,Leicestershire Partnership NHS Trust,19/03/21,UHL Facilities Management SLA,Estates Central Invoices To Recharge,UHL NHS TRUST (RWE),L0249130,927445.43
Department of Health,Leicestershire Partnership NHS Trust,19/03/21,Electricity,Estates & Facilities Central,UHL NHS TRUST (RWE),L0249131,37515.15
Department of Health,Leicestershire Partnership NHS Trust,22/03/21,WIP Project Not in BS - Information Technology,Work in Progress,DELL COMPUTERS,7402687154,25110.00
Department of Health,Leicestershire Partnership NHS Trust,22/03/21,Computer Software,HIS Infrastructure,IVANTI UK LIMITED,90023212,44491.20
Department of Health,Leicestershire Partnership NHS Trust,22/03/21,Nurse - Band 6 -Agency,CAMHS Waiting List Monies,HCL SOCIAL CARE,HWSI0000402,31422.17
Department of Health,Leicestershire Partnership NHS Trust,22/03/21,Nurse - Band 6 -Agency,AMH - Central Access Point,HCL NURSING,HNSI0000637,1625.38
Department of Health,Leicestershire Partnership NHS Trust,22/03/21,NURSE - BAND 2 - AGENCY,Acacia (Willows),HCL NURSING,HNSI0000637,174.72
Department of Health,Leicestershire Partnership NHS Trust,22/03/21,Nurse - Band 6 -Agency,Adult City East CMHT - Merlyn Vaz,HCL NURSING,HNSI0000637,2767.68
Department of Health,Leicestershire Partnership NHS Trust,22/03/21,Nurse - Band 6 -Agency,Adult County Charnwood CMHT - Loughborough Base,HCL NURSING,HNSI0000637,1348.16
Department of Health,Leicestershire Partnership NHS Trust,22/03/21,NURSE - BAND 2 - AGENCY,Agnes Unit Management,HCL NURSING,HNSI0000637,2968.65
Department of Health,Leicestershire Partnership NHS Trust,22/03/21,NURSE - BAND 5 - AGENCY,Agnes Unit Management,HCL NURSING,HNSI0000637,5475.13
Department of Health,Leicestershire Partnership NHS Trust,22/03/21,NURSE - BAND 2 - AGENCY,Ashby Ward (Bradgate Unit),HCL NURSING,HNSI0000637,1833.76
Department of Health,Leicestershire Partnership NHS Trust,22/03/21,NURSE - BAND 5 - AGENCY,Ashby Ward (Bradgate Unit),HCL NURSING,HNSI0000637,1479.33
Department of Health,Leicestershire Partnership NHS Trust,22/03/21,NURSE - BAND 2 - AGENCY,Aston Ward (Bradgate Unit),HCL NURSING,HNSI0000637,169.86
Department of Health,Leicestershire Partnership NHS Trust,22/03/21,NURSE - BAND 5 - AGENCY,Aston Ward (Bradgate Unit),HCL NURSING,HNSI0000637,700.24
Department of Health,Leicestershire Partnership NHS Trust,22/03/21,NURSE - BAND 2 - AGENCY,Beaumont Ward - Bradgate Unit,HCL NURSING,HNSI0000637,4275.62
Department of Health,Leicestershire Partnership NHS Trust,22/03/21,NURSE - BAND 5 - AGENCY,Beaumont Ward - Bradgate Unit,HCL NURSING,HNSI0000637,1626.68
Department of Health,Leicestershire Partnership NHS Trust,22/03/21,NURSE - BAND 2 - AGENCY,Belvoir Psychiatric Intensive Care Unit,HCL NURSING,HNSI0000637,1928.50
Department of Health,Leicestershire Partnership NHS Trust,22/03/21,NURSE - BAND 5 - AGENCY,Belvoir Psychiatric Intensive Care Unit,HCL NURSING,HNSI0000637,2478.34
Department of Health,Leicestershire Partnership NHS Trust,22/03/21,Nurse - Band 6 -Agency,Crisis Resolution,HCL NURSING,HNSI0000637,6519.20
Department of Health,Leicestershire Partnership NHS Trust,22/03/21,NURSE - BAND 2 - AGENCY,Griffin Ward (HPC),HCL NURSING,HNSI0000637,1811.87
Department of Health,Leicestershire Partnership NHS Trust,22/03/21,NURSE - BAND 5 - AGENCY,Griffin Ward (HPC),HCL NURSING,HNSI0000637,1222.21
Department of Health,Leicestershire Partnership NHS Trust,22/03/21,NURSE - BAND 2 - AGENCY,Heather Ward,HCL NURSING,HNSI0000637,802.07
Department of Health,Leicestershire Partnership NHS Trust,22/03/21,NURSE - BAND 5 - AGENCY,Heather Ward,HCL NURSING,HNSI0000637,1006.41
Department of Health,Leicestershire Partnership NHS Trust,22/03/21,Nurse - Band 6 -Agency,Mental Health Triage Team,HCL NURSING,HNSI0000637,1872.95
Department of Health,Leicestershire Partnership NHS Trust,22/03/21,NURSE - BAND 5 - AGENCY,Mill Lodge,HCL NURSING,HNSI0000637,1648.07
Department of Health,Leicestershire Partnership NHS Trust,22/03/21,NURSE - BAND 2 - AGENCY,Place Of Safety Assessment Unit,HCL NURSING,HNSI0000637,313.12
Department of Health,Leicestershire Partnership NHS Trust,22/03/21,NURSE - BAND 2 - AGENCY,Stewart House,HCL NURSING,HNSI0000637,2283.32
Department of Health,Leicestershire Partnership NHS Trust,22/03/21,NURSE - BAND 5 - AGENCY,Stewart House,HCL NURSING,HNSI0000637,894.30
Department of Health,Leicestershire Partnership NHS Trust,22/03/21,NURSE - BAND 2 - AGENCY,Thornton Ward - Bradgate Unit,HCL NURSING,HNSI0000637,174.73
Department of Health,Leicestershire Partnership NHS Trust,22/03/21,NURSE - BAND 2 - AGENCY,Watermead Ward (Bradgate Unit),HCL NURSING,HNSI0000637,524.19
Department of Health,Leicestershire Partnership NHS Trust,22/03/21,NURSE - BAND 5 - AGENCY,Watermead Ward (Bradgate Unit),HCL NURSING,HNSI0000637,329.84
Department of Health,Leicestershire Partnership NHS Trust,22/03/21,Leased / Hired Vehicles,360 Assurance - Internal Audit,AUTOMOTIVE LEASING LTD,508017714,10.00
Department of Health,Leicestershire Partnership NHS Trust,22/03/21,Leased / Hired Vehicles,Autism,AUTOMOTIVE LEASING LTD,508017714,638.96
Department of Health,Leicestershire Partnership NHS Trust,22/03/21,Prep_ LT1y -Prepayments Lease Cars,Balance Sheet Collection,AUTOMOTIVE LEASING LTD,508017714,22052.10
Department of Health,Leicestershire Partnership NHS Trust,22/03/21,Trade_Drs_LT1y -Lease Cars Invoicing Contrl Ac.,Balance Sheet Collection,AUTOMOTIVE LEASING LTD,508017714,2906.57
Department of Health,Leicestershire Partnership NHS Trust,22/03/21,Leased / Hired Vehicles,COVID 19,AUTOMOTIVE LEASING LTD,508017714,472.36
Department of Health,Leicestershire Partnership NHS Trust,22/03/21,Leased / Hired Vehicles,City Planned Care - East,AUTOMOTIVE LEASING LTD,508017714,5.00
Department of Health,Leicestershire Partnership NHS Trust,22/03/21,Leased / Hired Vehicles,City Planned Care - West - Therapy,AUTOMOTIVE LEASING LTD,508017714,10.00
Department of Health,Leicestershire Partnership NHS Trust,22/03/21,Leased / Hired Vehicles,Community Homeless Service,AUTOMOTIVE LEASING LTD,508017714,5.00
Department of Health,Leicestershire Partnership NHS Trust,22/03/21,Leased / Hired Vehicles,PIER Team - Early Intervention Services,AUTOMOTIVE LEASING LTD,508017714,10.00
Department of Health,Leicestershire Partnership NHS Trust,22/03/21,Leased / Hired Vehicles,Speech & Language Therapy,AUTOMOTIVE LEASING LTD,508017714,10.00
Department of Health,Leicestershire Partnership NHS Trust,22/03/21,Leased / Hired Vehicles,Support Services (Learn Dis),AUTOMOTIVE LEASING LTD,508017714,25.00
Department of Health,Leicestershire Partnership NHS Trust,22/03/21,Leased / Hired Vehicles,West Leicestershire CMHT MHSOP,AUTOMOTIVE LEASING LTD,508017714,162.70
Department of Health,Leicestershire Partnership NHS Trust,22/03/21,Leased / Hired Vehicles,West Planned Care  - Hinckley Hub,AUTOMOTIVE LEASING LTD,508017714,75.28
Department of Health,Leicestershire Partnership NHS Trust,22/03/21,Leased / Hired Vehicles,West Planned Care - NWL Hub,AUTOMOTIVE LEASING LTD,508017714,5.00
Department of Health,Leicestershire Partnership NHS Trust,22/03/21,GP IT Expenditure,Area Team,DELL COMPUTERS,7402692133,37323.79
Department of Health,Leicestershire Partnership NHS Trust,22/03/21,WIP Project Not in BS - Information Technology,Work in Progress,PHOENIX SOFTWARE LTD,OP/I890117,32237.24
Department of Health,Leicestershire Partnership NHS Trust,22/03/21,WIP Project Not in BS - Information Technology,Work in Progress,PHOENIX SOFTWARE LTD,OP/I890116,257897.95
Department of Health,Leicestershire Partnership NHS Trust,22/03/21,Crs_NHS_LT1y -Resus Inventory Supplied.,Balance Sheet Collection,SUPPLY CHAIN CO LTD,1121214987,43189.47
Department of Health,Leicestershire Partnership NHS Trust,22/03/21,External Consultancy Fees,HIS Programme & Change,DELL COMPUTERS,7402699011,50760.00
Department of Health,Leicestershire Partnership NHS Trust,22/03/21,External Consultancy Fees,HIS Programme & Change,UHL NHS TRUST (RWE),L0249181,152000.00
Department of Health,Leicestershire Partnership NHS Trust,22/03/21,FP10'S,Adult City Drugs,NHS BUS SERVICES AUTHORITY,1000068538,27523.84
Department of Health,Leicestershire Partnership NHS Trust,22/03/21,FP10'S,Adult County Drugs,NHS BUS SERVICES AUTHORITY,1000068538,12045.83
Department of Health,Leicestershire Partnership NHS Trust,22/03/21,FP10'S,Adult County North West Leicestershire CMHT,NHS BUS SERVICES AUTHORITY,1000068538,770.52
Department of Health,Leicestershire Partnership NHS Trust,22/03/21,FP10'S,CAMHS Outpatients,NHS BUS SERVICES AUTHORITY,1000068538,18801.79
Department of Health,Leicestershire Partnership NHS Trust,22/03/21,FP10'S,Children Services Medical,NHS BUS SERVICES AUTHORITY,1000068538,15809.66
Department of Health,Leicestershire Partnership NHS Trust,22/03/21,FP10'S,Dementia Related Drugs and Investigations,NHS BUS SERVICES AUTHORITY,1000068538,2564.58
Department of Health,Leicestershire Partnership NHS Trust,22/03/21,FP10'S,Eating Disorders Outpatient Service,NHS BUS SERVICES AUTHORITY,1000068538,947.64
Department of Health,Leicestershire Partnership NHS Trust,22/03/21,FP10'S,Forensic Services - Community,NHS BUS SERVICES AUTHORITY,1000068538,125.25
Department of Health,Leicestershire Partnership NHS Trust,22/03/21,FP10'S,LOROS Pharmacy,NHS BUS SERVICES AUTHORITY,1000068538,278.29
Department of Health,Leicestershire Partnership NHS Trust,22/03/21,FP10'S,Liason Psychiatry Service,NHS BUS SERVICES AUTHORITY,1000068538,80.78
Department of Health,Leicestershire Partnership NHS Trust,22/03/21,FP10'S,Lough Swithland Ward,NHS BUS SERVICES AUTHORITY,1000068538,15.05
Department of Health,Leicestershire Partnership NHS Trust,22/03/21,FP10'S,PIER Team - Early Intervention Services,NHS BUS SERVICES AUTHORITY,1000068538,16551.64
Department of Health,Leicestershire Partnership NHS Trust,22/03/21,FP10'S,Snr Med Staff (Inc Med Reps),NHS BUS SERVICES AUTHORITY,1000068538,5324.12
Department of Health,Leicestershire Partnership NHS Trust,22/03/21,Electricity,Estates & Facilities Central,UHL NHS TRUST (RWE),L0249199,106170.96
Department of Health,Leicestershire Partnership NHS Trust,23/03/21,Computer License  Fees,Information Services,PHOENIX SOFTWARE LTD,OP/I885051,70092.00
Department of Health,Leicestershire Partnership NHS Trust,23/03/21,Computer License  Fees,Information Services,PHOENIX SOFTWARE LTD,OP/I887347,76779.36
Department of Health,Leicestershire Partnership NHS Trust,23/03/21,Computer License  Fees,Information Services,PHOENIX SOFTWARE LTD,OP/I890452,-69858.01
Department of Health,Leicestershire Partnership NHS Trust,23/03/21,WIP Project Not in BS - Information Technology,Work in Progress,CCS MEDIA,4152756,43519.20
Department of Health,Leicestershire Partnership NHS Trust,23/03/21,WIP Project Not in BS - Information Technology,Work in Progress,CCS MEDIA,4123010,78210.00
Department of Health,Leicestershire Partnership NHS Trust,23/03/21,Catering Equipment / Crockery,Estates & Facilities Central,UHL NHS TRUST (RWE),L0249241,8284.19
Department of Health,Leicestershire Partnership NHS Trust,23/03/21,Cleaning Equipment/Materials,Estates & Facilities Central,UHL NHS TRUST (RWE),L0249241,44493.96
Department of Health,Leicestershire Partnership NHS Trust,23/03/21,Contract : Premises Security,Feilding Palmer - Staff Vaccination Hub,UHL NHS TRUST (RWE),L0249241,0.00
Department of Health,Leicestershire Partnership NHS Trust,23/03/21,WIP Project Not in BS - Buildings excl Dwellings,Work in Progress,TILBURY DOUGLAS CONSTRUCTION LTD,TMP01656,85020.80
Department of Health,Leicestershire Partnership NHS Trust,23/03/21,WIP Project Not in BS - Buildings excl Dwellings,Work in Progress,TILBURY DOUGLAS CONSTRUCTION LTD,TMP01638,56019.67
Department of Health,Leicestershire Partnership NHS Trust,23/03/21,WIP Project Not in BS - Buildings excl Dwellings,Work in Progress,TILBURY DOUGLAS CONSTRUCTION LTD,TMP01662,30756.52
Department of Health,Leicestershire Partnership NHS Trust,23/03/21,WIP Project Not in BS - Buildings excl Dwellings,Work in Progress,TILBURY DOUGLAS CONSTRUCTION LTD,TMP01655,63242.89
Department of Health,Leicestershire Partnership NHS Trust,23/03/21,WIP Project Not in BS - Buildings excl Dwellings,Work in Progress,TILBURY DOUGLAS CONSTRUCTION LTD,TMP01658,31447.38
Department of Health,Leicestershire Partnership NHS Trust,23/03/21,Minor Works,Adult County Charnwood CMHT - Loughborough Base,UHL NHS TRUST (RWE),L0249244,749.04
Department of Health,Leicestershire Partnership NHS Trust,23/03/21,Minor Works,Beaumont Ward - Bradgate Unit,UHL NHS TRUST (RWE),L0249244,6840.00
Department of Health,Leicestershire Partnership NHS Trust,23/03/21,Minor Works,Beechwood Ward,UHL NHS TRUST (RWE),L0249244,234.00
Department of Health,Leicestershire Partnership NHS Trust,23/03/21,Minor Works,"Belvoir Intensive Care Unit (P7, LPT)",UHL NHS TRUST (RWE),L0249244,3015.48
Department of Health,Leicestershire Partnership NHS Trust,23/03/21,Minor Works,"Bradgate Unit (including Glenvale day Unit) (P7, LPT)",UHL NHS TRUST (RWE),L0249244,1440.00
Department of Health,Leicestershire Partnership NHS Trust,23/03/21,Minor Works,Bradgate Unit Site Services,UHL NHS TRUST (RWE),L0249244,953.52
Department of Health,Leicestershire Partnership NHS Trust,23/03/21,Minor Works,CAMHS Learning Disabilities and Outreach Team,UHL NHS TRUST (RWE),L0249244,756.00
Department of Health,Leicestershire Partnership NHS Trust,23/03/21,Minor Works,CHS Inpatient Management,UHL NHS TRUST (RWE),L0249244,3230.40
Department of Health,Leicestershire Partnership NHS Trust,23/03/21,Minor Works,Children's Physiotherapy,UHL NHS TRUST (RWE),L0249244,260.40
Department of Health,Leicestershire Partnership NHS Trust,23/03/21,Minor Works,Cognitive Behaviour Therapy (CBT) Income,UHL NHS TRUST (RWE),L0249244,186.00
Department of Health,Leicestershire Partnership NHS Trust,23/03/21,Minor Works,Coleman Ward,UHL NHS TRUST (RWE),L0249244,1525.20
Department of Health,Leicestershire Partnership NHS Trust,23/03/21,Minor Works,Estates & Facilities Central,UHL NHS TRUST (RWE),L0249244,3351.60
Department of Health,Leicestershire Partnership NHS Trust,23/03/21,Minor Works,Gillivers,UHL NHS TRUST (RWE),L0249244,1627.20
Department of Health,Leicestershire Partnership NHS Trust,23/03/21,Minor Works,"Inpatients, Crisis & Liasion Management",UHL NHS TRUST (RWE),L0249244,4896.00
Department of Health,Leicestershire Partnership NHS Trust,23/03/21,Minor Works,Lough Swithland Ward,UHL NHS TRUST (RWE),L0249244,1557.60
Department of Health,Leicestershire Partnership NHS Trust,23/03/21,Minor Works,MHSOP Integrated Care Team,UHL NHS TRUST (RWE),L0249244,270.00
Department of Health,Leicestershire Partnership NHS Trust,23/03/21,Minor Works,MHSOP Site Services,UHL NHS TRUST (RWE),L0249244,540.00
Department of Health,Leicestershire Partnership NHS Trust,23/03/21,Minor Works,Mill Lodge,UHL NHS TRUST (RWE),L0249244,2289.60
Department of Health,Leicestershire Partnership NHS Trust,23/03/21,Minor Works,Rutland Ward Nursing,UHL NHS TRUST (RWE),L0249244,234.00
Department of Health,Leicestershire Partnership NHS Trust,23/03/21,Minor Works,Stewart House,UHL NHS TRUST (RWE),L0249244,2154.00
Department of Health,Leicestershire Partnership NHS Trust,23/03/21,Minor Works,Support Services (Learn Dis),UHL NHS TRUST (RWE),L0249244,630.00
Department of Health,Leicestershire Partnership NHS Trust,23/03/21,Minor Works,The Grange,UHL NHS TRUST (RWE),L0249244,7742.40
Department of Health,Leicestershire Partnership NHS Trust,23/03/21,Minor Works,Urgent Care Hub,UHL NHS TRUST (RWE),L0249244,908.40
Department of Health,Leicestershire Partnership NHS Trust,23/03/21,Minor Works,Watermead Ward (Bradgate Unit),UHL NHS TRUST (RWE),L0249244,775.20
Department of Health,Leicestershire Partnership NHS Trust,23/03/21,Minor Works,"Westcotes Group -Westcotes House (P78, LPT)",UHL NHS TRUST (RWE),L0249244,5520.00
Department of Health,Leicestershire Partnership NHS Trust,23/03/21,Minor Works,Willows Unit,UHL NHS TRUST (RWE),L0249244,1383.60
Department of Health,Leicestershire Partnership NHS Trust,23/03/21,WIP Project Not in BS - Buildings excl Dwellings,Work in Progress,UHL NHS TRUST (RWE),L0249244,19074.00
Department of Health,Leicestershire Partnership NHS Trust,23/03/21,Minor Works,Estates & Facilities Central,UHL NHS TRUST (RWE),L0249242,510.89
Department of Health,Leicestershire Partnership NHS Trust,23/03/21,WIP Project Not in BS - Buildings excl Dwellings,Work in Progress,UHL NHS TRUST (RWE),L0249242,60610.16
Department of Health,Leicestershire Partnership NHS Trust,23/03/21,External Contracts,"Hinckley and Bosworth Community Hospital (Sunnyside) (P133, LPT)",TILBURY DOUGLAS CONSTRUCTION LTD,TMP01641,15322.53
Department of Health,Leicestershire Partnership NHS Trust,23/03/21,WIP Project Not in BS - Buildings excl Dwellings,Work in Progress,TILBURY DOUGLAS CONSTRUCTION LTD,TMP01641,22164.59
Department of Health,Leicestershire Partnership NHS Trust,23/03/21,Maintenance Equipt/Materials,Estates & Facilities Central,UHL NHS TRUST (RWE),L0249240,64739.50
Department of Health,Leicestershire Partnership NHS Trust,23/03/21,Other Non-Medical Supplies & Services,"Inpatients, Crisis & Liasion Management",LEICS CONSTABULARY,2005936,48250.00
Department of Health,Leicestershire Partnership NHS Trust,24/03/21,WIP Project Not in BS - Buildings excl Dwellings,Work in Progress,TILBURY DOUGLAS CONSTRUCTION LTD,TMP01679,33119.05
Department of Health,Leicestershire Partnership NHS Trust,24/03/21,WIP Project Not in BS - Buildings excl Dwellings,Work in Progress,TILBURY DOUGLAS CONSTRUCTION LTD,TMP01677,33959.16
Department of Health,Leicestershire Partnership NHS Trust,24/03/21,WIP Project Not in BS - Buildings excl Dwellings,Work in Progress,TILBURY DOUGLAS CONSTRUCTION LTD,TMP01669,62373.38
Department of Health,Leicestershire Partnership NHS Trust,24/03/21,WIP Project Not in BS - Buildings excl Dwellings,Work in Progress,TILBURY DOUGLAS CONSTRUCTION LTD,TMP01671,32286.88
Department of Health,Leicestershire Partnership NHS Trust,24/03/21,WIP Project Not in BS - Buildings excl Dwellings,Work in Progress,TILBURY DOUGLAS CONSTRUCTION LTD,TMP01659,88146.96
Department of Health,Leicestershire Partnership NHS Trust,25/03/21,WIP Project Not in BS - Furniture & Fittings,Work in Progress,VERATHON MEDICAL,30015616,70672.50
Department of Health,Leicestershire Partnership NHS Trust,25/03/21,Other Non-Medical Supplies & Services,Director of HR & OD,UNIVERSITY OF YORK,120133,51489.60
Department of Health,Leicestershire Partnership NHS Trust,26/03/21,Course / Training Expenses,Director of HR & OD,MENTAL HEALTH FIRST AID ENGLAND,INV129171,45981.60
Department of Health,Leicestershire Partnership NHS Trust,26/03/21,External Consultancy Fees,Digital Innovation Hub,KEYSTREAM HC RES LTD,57807,36189.60
Department of Health,Leicestershire Partnership NHS Trust,26/03/21,Course / Training Expenses,Work Force Transformation,STORM SKILLS TRAINING CIC,190195,36288.00
Department of Health,Leicestershire Partnership NHS Trust,26/03/21,WIP Project Not in BS - Transport and Equipment,Work in Progress,GUYMARK UK LTD,126087,32039.18
Department of Health,Leicestershire Partnership NHS Trust,26/03/21,Admin & Clerical - Agency,Transformational Funding,NOTTS HLTHC NHS FT,1000055091,47000.00
Department of Health,Leicestershire Partnership NHS Trust,29/03/21,Nurse - Band 6 -Agency,AMH - Central Access Point,HCL NURSING,HNSI0000645,1810.30
Department of Health,Leicestershire Partnership NHS Trust,29/03/21,NURSE - BAND 5 - AGENCY,Acacia (Willows),HCL NURSING,HNSI0000645,329.84
Department of Health,Leicestershire Partnership NHS Trust,29/03/21,Nurse - Band 6 -Agency,Adult City East CMHT - Merlyn Vaz,HCL NURSING,HNSI0000645,3209.90
Department of Health,Leicestershire Partnership NHS Trust,29/03/21,Nurse - Band 6 -Agency,Adult County Charnwood CMHT - Loughborough Base,HCL NURSING,HNSI0000645,1348.16
Department of Health,Leicestershire Partnership NHS Trust,29/03/21,Nurse - Band 6 -Agency,Adult County West Leicestershire CMHT,HCL NURSING,HNSI0000645,1069.97
Department of Health,Leicestershire Partnership NHS Trust,29/03/21,NURSE - BAND 2 - AGENCY,Agnes Unit Management,HCL NURSING,HNSI0000645,11458.98
Department of Health,Leicestershire Partnership NHS Trust,29/03/21,NURSE - BAND 5 - AGENCY,Agnes Unit Management,HCL NURSING,HNSI0000645,6798.22
Department of Health,Leicestershire Partnership NHS Trust,29/03/21,NURSE - BAND 2 - AGENCY,Ashby Ward (Bradgate Unit),HCL NURSING,HNSI0000645,2238.44
Department of Health,Leicestershire Partnership NHS Trust,29/03/21,NURSE - BAND 5 - AGENCY,Ashby Ward (Bradgate Unit),HCL NURSING,HNSI0000645,266.71
Department of Health,Leicestershire Partnership NHS Trust,29/03/21,NURSE - BAND 2 - AGENCY,Aston Ward (Bradgate Unit),HCL NURSING,HNSI0000645,1190.07
Department of Health,Leicestershire Partnership NHS Trust,29/03/21,NURSE - BAND 5 - AGENCY,Aston Ward (Bradgate Unit),HCL NURSING,HNSI0000645,329.84
Department of Health,Leicestershire Partnership NHS Trust,29/03/21,NURSE - BAND 2 - AGENCY,Beaumont Ward - Bradgate Unit,HCL NURSING,HNSI0000645,3617.39
Department of Health,Leicestershire Partnership NHS Trust,29/03/21,NURSE - BAND 5 - AGENCY,Beaumont Ward - Bradgate Unit,HCL NURSING,HNSI0000645,1070.63
Department of Health,Leicestershire Partnership NHS Trust,29/03/21,NURSE - BAND 2 - AGENCY,Belvoir Psychiatric Intensive Care Unit,HCL NURSING,HNSI0000645,604.95
Department of Health,Leicestershire Partnership NHS Trust,29/03/21,NURSE - BAND 5 - AGENCY,Belvoir Psychiatric Intensive Care Unit,HCL NURSING,HNSI0000645,1075.13
Department of Health,Leicestershire Partnership NHS Trust,29/03/21,Nurse - Band 6 -Agency,Crisis Resolution,HCL NURSING,HNSI0000645,4969.55
Department of Health,Leicestershire Partnership NHS Trust,29/03/21,NURSE - BAND 2 - AGENCY,Griffin Ward (HPC),HCL NURSING,HNSI0000645,573.05
Department of Health,Leicestershire Partnership NHS Trust,29/03/21,NURSE - BAND 5 - AGENCY,Griffin Ward (HPC),HCL NURSING,HNSI0000645,1222.21
Department of Health,Leicestershire Partnership NHS Trust,29/03/21,NURSE - BAND 2 - AGENCY,Heather Ward,HCL NURSING,HNSI0000645,1141.26
Department of Health,Leicestershire Partnership NHS Trust,29/03/21,Nurse - Band 6 -Agency,Mental Health Triage Team,HCL NURSING,HNSI0000645,804.02
Department of Health,Leicestershire Partnership NHS Trust,29/03/21,NURSE - BAND 2 - AGENCY,Mill Lodge,HCL NURSING,HNSI0000645,1381.26
Department of Health,Leicestershire Partnership NHS Trust,29/03/21,NURSE - BAND 5 - AGENCY,Mill Lodge,HCL NURSING,HNSI0000645,1043.32
Department of Health,Leicestershire Partnership NHS Trust,29/03/21,NURSE - BAND 2 - AGENCY,Phoenix Ward (HPC),HCL NURSING,HNSI0000645,174.73
Department of Health,Leicestershire Partnership NHS Trust,29/03/21,NURSE - BAND 2 - AGENCY,Stewart House,HCL NURSING,HNSI0000645,186.02
Department of Health,Leicestershire Partnership NHS Trust,29/03/21,NURSE - BAND 5 - AGENCY,Stewart House,HCL NURSING,HNSI0000645,345.15
Department of Health,Leicestershire Partnership NHS Trust,29/03/21,NURSE - BAND 2 - AGENCY,Thornton Ward - Bradgate Unit,HCL NURSING,HNSI0000645,240.34
Department of Health,Leicestershire Partnership NHS Trust,29/03/21,NURSE - BAND 5 - AGENCY,Thornton Ward - Bradgate Unit,HCL NURSING,HNSI0000645,329.84
Department of Health,Leicestershire Partnership NHS Trust,29/03/21,NURSE - BAND 2 - AGENCY,Watermead Ward (Bradgate Unit),HCL NURSING,HNSI0000645,524.19
Department of Health,Leicestershire Partnership NHS Trust,29/03/21,Nurse - Band 6 -Agency,CAMHS Waiting List Monies,HCL SOCIAL CARE,HWSI0000410,27589.48
Department of Health,Leicestershire Partnership NHS Trust,29/03/21,External Consultancy Fees,Covid Vaccination Workforce Bureau,SEYMOUR JOHN PUB SERV LTD,P1661,269044.80
Department of Health,Leicestershire Partnership NHS Trust,29/03/21,Crs_NHS_LT1y -Resus Inventory Supplied.,Balance Sheet Collection,SUPPLY CHAIN CO LTD,1121220519,67878.64
Department of Health,Leicestershire Partnership NHS Trust,29/03/21,WIP Project Not in BS - Furniture & Fittings,Work in Progress,PLINTH MEDICAL LTD,INV94306,41774.50
Department of Health,Leicestershire Partnership NHS Trust,29/03/21,WIP Project Not in BS - Information Technology,Work in Progress,DELL COMPUTERS,7402700780,49242.72
Department of Health,Leicestershire Partnership NHS Trust,29/03/21,WIP Project Not in BS - Information Technology,Work in Progress,CCS MEDIA,4119073,106608.19
Department of Health,Leicestershire Partnership NHS Trust,29/03/21,Medical & Surgical Equipment,Medical Devices Maintenance (LPT),MEDSTROM HEALTHCARE,106624,38118.72
Department of Health,Leicestershire Partnership NHS Trust,29/03/21,Medical Equipment Repairs / Maintenance,Medical Devices Maintenance (LPT),MEDSTROM HEALTHCARE,106624,48648.38
Department of Health,Leicestershire Partnership NHS Trust,29/03/21,Patients Appliances/Repairs,Medical Devices Maintenance (LPT),MEDSTROM HEALTHCARE,106624,1471.85
Department of Health,Leicestershire Partnership NHS Trust,29/03/21,Medical & Surgical Equipment,Medical Devices Maintenance (LPT),MEDSTROM HEALTHCARE,106838,38139.84
Department of Health,Leicestershire Partnership NHS Trust,29/03/21,Medical & Surgical Equipment : Disposable,Medical Devices Maintenance (LPT),MEDSTROM HEALTHCARE,106838,6536.16
Department of Health,Leicestershire Partnership NHS Trust,29/03/21,Patients Appliances/Repairs,Medical Devices Maintenance (LPT),MEDSTROM HEALTHCARE,106838,4281.55
Department of Health,Leicestershire Partnership NHS Trust,29/03/21,Medical & Surgical Equipment,Medical Devices Maintenance (LPT),DANTEC DYNAMICS,SI0718739,42186.24
Department of Health,Leicestershire Partnership NHS Trust,29/03/21,WIP Project Not in BS - Furniture & Fittings,Work in Progress,VERATHON MEDICAL,30015749,47611.15
Department of Health,Leicestershire Partnership NHS Trust,30/03/21,WIP Project Not in BS - Furniture & Fittings,Work in Progress,CAREBASE,81645,96936.00
Department of Health,Leicestershire Partnership NHS Trust,30/03/21,NURSE - BAND 2 - AGENCY,Non Recurrent 2012/13,HCL NURSING,HNSI0000638,36566.04
Department of Health,Leicestershire Partnership NHS Trust,30/03/21,NURSE - BAND 5 - AGENCY,Non Recurrent 2012/13,HCL NURSING,HNSI0000638,75927.39
Department of Health,Leicestershire Partnership NHS Trust,30/03/21,Nurse - Band 6 -Agency,Non Recurrent 2012/13,HCL NURSING,HNSI0000638,3422.02
Department of Health,Leicestershire Partnership NHS Trust,30/03/21,WIP Project Not in BS - Furniture & Fittings,Work in Progress,VERATHON MEDICAL,30015653,221807.38
Department of Health,Leicestershire Partnership NHS Trust,30/03/21,WIP Project Not in BS - Buildings excl Dwellings,Work in Progress,TILBURY DOUGLAS CONSTRUCTION LTD,TMP01726,341195.74
Department of Health,Leicestershire Partnership NHS Trust,30/03/21,NURSE - BAND 2 - AGENCY,Non Recurrent 2012/13,HCL NURSING,HNSI0000646,31603.51
Department of Health,Leicestershire Partnership NHS Trust,30/03/21,NURSE - BAND 5 - AGENCY,Non Recurrent 2012/13,HCL NURSING,HNSI0000646,69171.87
Department of Health,Leicestershire Partnership NHS Trust,30/03/21,Nurse - Band 6 -Agency,Non Recurrent 2012/13,HCL NURSING,HNSI0000646,3422.02
